{"text_format":"1","workbook":"xlsx","n_sheets":18,"sheets":["はじめに","基本項目入力","データ入力","1","1個別分","１②","一般拠出","一般拠出個別分","1電子","1-2","1-3","別紙1-1","別紙1-2","別紙1-3","1電子例","別紙1-1例","別紙1-2例","別紙1-3例"],"not_rendered":{"charts":0,"images":0,"macros":1,"external_links":1,"defined_names":53,"comments":1,"pivot_tables":0},"unopened":[],"bounds":{"document_bytes":16777216,"sheet_cells":100000,"rows_first":2000,"rows_last":500,"rows_between":2000,"halvings":0,"cell_chars":16384,"cell_head_chars":4096},"cells_cut":0,"cells_raw":0,"read":"whole","date_system":"1900"}

{"sheet":"はじめに","index":0,"n_rows":18,"n_cols":30,"rows_kept":18,"cut":false,"hidden":false,"merged":[[1,0,1,5],[6,2,6,3],[8,2,8,3]]}
[]
["事務組合報奨金交付申請書作成ソフト",null,null,null,null,null,"「コンテンツの有効化」ボタンをクリックしてから入力してください。"]
[]
[null,null,null,null,null,null,null,null,null,null,null,null,null,null,null,null,null,null,null,null,null,null,null,null,null,null,null,null,null,""]
[null,null,null,null,null,null,null,null,null,null,null,null,null,null,null,null,null,null,null,null,null,null,null,null,null,null,null,null,null,""]
[null,null,null,null,null,null,null,null,null,null,null,null,null,null,null,null,null,null,null,null,null,null,null,null,null,null,null,null,null,""]
[null,"令和",8,null,"年度"]
[null,null,null,null,null,null,null,null,null,null,null,null,null,null,null,null,null,null,null,null,null,null,null,null,null,null,null,null,null,""]
[null,"提出先","愛知",null,"労働局"]
[null,null,null,null,null,null,null,null,null,null,null,null,null,null,null,null,null,null,null,null,null,null,null,null,null,null,null,null,null,""]
[null,null,null,null,null,null,null,null,null,null,null,null,null,null,null,null,null,null,null,null,null,null,null,null,null,null,null,null,null,""]
[null,null,null,null,null,null,null,null,null,null,null,null,null,null,null,null,null,null,null,null,null,null,null,null,null,null,null,null,null,""]
[null,null,null,null,null,null,null,null,null,null,null,null,null,null,null,null,null,null,null,null,null,null,null,null,null,null,null,null,null,""]
[null,null,null,null,null,null,null,null,null,null,null,null,null,null,null,null,null,null,null,null,null,null,null,null,null,null,null,null,null,""]
[null,null,null,null,null,null,null,null,null,null,null,null,null,null,null,null,null,null,null,null,null,null,null,null,null,null,null,null,null,""]
[null,null,null,null,null,null,null,null,null,null,null,null,null,null,null,null,null,null,null,null,null,null,null,null,null,null,null,null,null,""]
[null,null,null,null,null,null,null,null,null,null,null,null,null,null,null,null,null,null,null,null,null,null,null,null,null,null,null,null,null,""]
[null,null,null,null,null,null,null,null,null,null,null,null,null,null,null,null,null,null,null,null,null,null,null,null,null,null,null,null,null,""]

{"sheet":"基本項目入力","index":1,"n_rows":18,"n_cols":3,"rows_kept":18,"cut":false,"hidden":false,"merged":[[9,1,9,2],[12,1,12,2],[14,1,14,2],[17,1,17,2],[0,0,0,2],[3,1,3,2],[4,1,4,2],[5,1,5,2],[6,1,6,2],[7,1,7,2],[8,1,8,2]]}
["労働保険事務組合の基本項目を入力してください"]
[]
["【基本項目】",null,"※水色欄入力"]
["区分","入力項目"]
["労働保険事務組合の名称"]
["郵便番号"]
["所在地"]
["電話番号"]
["代表者氏名"]
["作成者氏名"]
[]
["【金融機関】"]
["区分","入力項目"]
["金融機関の名称"]
["ゆうちょ銀行の場合は所在地"]
["店名",null,"店"]
["口座番号"]
["名義人"]

{"sheet":"データ入力","index":2,"n_rows":74,"n_cols":18,"rows_kept":74,"cut":false,"hidden":false,"merged":[[0,0,0,17],[2,2,3,2],[2,16,2,17],[2,0,3,0],[2,1,3,1],[2,4,2,5],[2,3,3,3]]}
["「事務組合報奨金交付申請書」データ入力表"]
[]
["番号","基幹番号","枝番号","年度途中","区分",null,"①","②","③","④","⑤","⑥","⑦","⑧","⑨","⑩","一般拠出金納付状況"]
[null,null,null,null,"労働者数","二保険","確定保険料総額","追徴金","延滞金","(①＋②＋③)","①に係る\n納付済額","⑤のうち督促\nを受けた額","(⑤－⑥)","②に係る\n納付済額","③に係る\n納付済額","(⑤＋⑧＋⑨)","総額","納付済額"]
[{"$f":"ROW()-4","v":1},null,null,null,null,null,null,null,null,{"$f":"SUM(G5:I5)","v":0},null,null,{"$f":"(K5-L5)","v":0},null,null,{"$f":"SUM(K5,N5,O5)","v":0}]
[{"$f":"ROW()-4","v":2},null,null,null,null,null,null,null,null,{"$f":"SUM(G6:I6)","v":0},null,null,{"$f":"(K6-L6)","v":0},null,null,{"$f":"SUM(K6,N6,O6)","v":0}]
[3,null,null,null,null,null,null,null,null,0,null,null,0,null,null,0]
[4,null,null,null,null,null,null,null,null,0,null,null,0,null,null,0]
[5,null,null,null,null,null,null,null,null,0,null,null,0,null,null,0]
[6,null,null,null,null,null,null,null,null,0,null,null,0,null,null,0]
[7,null,null,null,null,null,null,null,null,0,null,null,0,null,null,0]
[8,null,null,null,null,null,null,null,null,0,null,null,0,null,null,0]
[9,null,null,null,null,null,null,null,null,0,null,null,0,null,null,0]
[{"$f":"ROW()-4","v":10},null,null,null,null,null,null,null,null,0,null,null,0,null,null,0]
[{"$f":"ROW()-4","v":11},null,null,null,null,null,null,null,null,0,null,null,0,null,null,0]
[12,null,null,null,null,null,null,null,null,0,null,null,0,null,null,0]
[13,null,null,null,null,null,null,null,null,0,null,null,0,null,null,0]
[14,null,null,null,null,null,null,null,null,0,null,null,0,null,null,0]
[15,null,null,null,null,null,null,null,null,0,null,null,0,null,null,0]
[16,null,null,null,null,null,null,null,null,0,null,null,0,null,null,0]
[17,null,null,null,null,null,null,null,null,0,null,null,0,null,null,0]
[18,null,null,null,null,null,null,null,null,0,null,null,0,null,null,0]
[19,null,null,null,null,null,null,null,null,0,null,null,0,null,null,0]
[20,null,null,null,null,null,null,null,null,0,null,null,0,null,null,0]
[21,null,null,null,null,null,null,null,null,0,null,null,0,null,null,0]
[22,null,null,null,null,null,null,null,null,0,null,null,0,null,null,0]
[23,null,null,null,null,null,null,null,null,0,null,null,0,null,null,0]
[24,null,null,null,null,null,null,null,null,0,null,null,0,null,null,0]
[25,null,null,null,null,null,null,null,null,0,null,null,0,null,null,0]
[26,null,null,null,null,null,null,null,null,0,null,null,0,null,null,0]
[27,null,null,null,null,null,null,null,null,0,null,null,0,null,null,0]
[28,null,null,null,null,null,null,null,null,0,null,null,0,null,null,0]
[29,null,null,null,null,null,null,null,null,0,null,null,0,null,null,0]
[30,null,null,null,null,null,null,null,null,0,null,null,0,null,null,0]
[31,null,null,null,null,null,null,null,null,0,null,null,0,null,null,0]
[32,null,null,null,null,null,null,null,null,0,null,null,0,null,null,0]
[33,null,null,null,null,null,null,null,null,0,null,null,0,null,null,0]
[34,null,null,null,null,null,null,null,null,0,null,null,0,null,null,0]
[35,null,null,null,null,null,null,null,null,0,null,null,0,null,null,0]
[36,null,null,null,null,null,null,null,null,0,null,null,0,null,null,0]
[37,null,null,null,null,null,null,null,null,0,null,null,0,null,null,0]
[38,null,null,null,null,null,null,null,null,0,null,null,0,null,null,0]
[39,null,null,null,null,null,null,null,null,0,null,null,0,null,null,0]
[{"$f":"ROW()-4","v":40},null,null,null,null,null,null,null,null,0,null,null,0,null,null,0]
[{"$f":"ROW()-4","v":41},null,null,null,null,null,null,null,null,0,null,null,0,null,null,0]
[42,null,null,null,null,null,null,null,null,0,null,null,0,null,null,0]
[43,null,null,null,null,null,null,null,null,0,null,null,0,null,null,0]
[44,null,null,null,null,null,null,null,null,0,null,null,0,null,null,0]
[45,null,null,null,null,null,null,null,null,0,null,null,0,null,null,0]
[46,null,null,null,null,null,null,null,null,0,null,null,0,null,null,0]
[47,null,null,null,null,null,null,null,null,0,null,null,0,null,null,0]
[48,null,null,null,null,null,null,null,null,0,null,null,0,null,null,0]
[49,null,null,null,null,null,null,null,null,0,null,null,0,null,null,0]
[50,null,null,null,null,null,null,null,null,0,null,null,0,null,null,0]
[51,null,null,null,null,null,null,null,null,0,null,null,0,null,null,0]
[52,null,null,null,null,null,null,null,null,0,null,null,0,null,null,0]
[53,null,null,null,null,null,null,null,null,0,null,null,0,null,null,0]
[54,null,null,null,null,null,null,null,null,0,null,null,0,null,null,0]
[55,null,null,null,null,null,null,null,null,0,null,null,0,null,null,0]
[56,null,null,null,null,null,null,null,null,0,null,null,0,null,null,0]
[57,null,null,null,null,null,null,null,null,0,null,null,0,null,null,0]
[58,null,null,null,null,null,null,null,null,0,null,null,0,null,null,0]
[59,null,null,null,null,null,null,null,null,0,null,null,0,null,null,0]
[60,null,null,null,null,null,null,null,null,0,null,null,0,null,null,0]
[61,null,null,null,null,null,null,null,null,0,null,null,0,null,null,0]
[62,null,null,null,null,null,null,null,null,0,null,null,0,null,null,0]
[63,null,null,null,null,null,null,null,null,0,null,null,0,null,null,0]
[64,null,null,null,null,null,null,null,null,0,null,null,0,null,null,0]
[65,null,null,null,null,null,null,null,null,0,null,null,0,null,null,0]
[66,null,null,null,null,null,null,null,null,{"$f":"SUM(G70:I70)","v":0},null,null,0,null,null,0]
[67,null,null,null,null,null,null,null,null,0,null,null,0,null,null,0]
[68,null,null,null,null,null,null,null,null,0,null,null,0,null,null,0]
[69,null,null,null,null,null,null,null,null,0,null,null,0,null,null,0]
[70,null,null,null,null,null,null,null,null,0,null,null,0,null,null,0]

{"sheet":"1","index":3,"n_rows":43,"n_cols":67,"rows_kept":43,"cut":false,"hidden":false,"merged":[[4,32,4,33],[4,35,4,36],[4,38,4,39],[5,42,14,42],[5,47,5,49],[6,43,7,46],[6,47,7,49],[10,44,10,46],[10,49,10,53],[13,43,14,55],[13,10,14,15],[13,16,14,24],[13,31,14,34],[13,35,14,40],[23,32,24,36],[23,37,24,41],[6,57,9,66],[7,1,8,4],[7,10,8,15],[7,16,8,30],[7,31,8,34],[7,35,8,40],[8,47,8,49],[5,56,14,56],[6,50,7,53],[6,54,7,54],[10,10,11,15],[10,16,11,30],[10,31,11,34],[10,35,11,40],[11,57,14,66],[23,7,23,13],[24,7,24,13],[23,14,23,21],[41,1,42,6],[24,22,24,26],[24,56,24,57],[22,1,25,6],[22,55,23,62],[26,14,26,17],[26,18,26,21],[26,22,26,26],[26,27,26,31],[24,60,24,61],[25,14,25,17],[25,18,25,21],[25,55,25,56],[25,57,25,58],[25,59,25,60],[25,61,25,62],[23,27,24,31],[23,42,24,45],[23,46,24,49],[23,50,24,54],[26,57,26,58],[26,59,26,60],[26,61,26,62],[26,7,26,13],[26,32,26,36],[26,37,26,41],[26,42,26,45],[26,46,26,49],[26,50,26,54],[26,55,26,56],[27,7,27,13],[27,14,27,17],[27,18,27,21],[27,22,27,26],[27,27,27,31],[27,32,27,36],[27,37,27,41],[27,42,27,45],[27,46,27,49],[27,59,27,60],[27,61,27,62],[28,7,28,13],[28,14,28,17],[28,18,28,21],[28,22,28,26],[28,27,28,31],[28,32,28,36],[28,37,28,41],[28,42,28,45],[28,46,28,49],[27,50,27,54],[27,55,27,56],[27,57,27,58],[29,7,29,13],[29,14,29,17],[29,18,29,21],[30,7,30,13],[30,14,30,17],[30,18,30,21],[30,22,30,26],[30,27,30,31],[30,32,30,36],[29,22,29,26],[29,27,29,31],[29,32,29,36],[29,59,29,60],[29,61,29,62],[30,59,30,60],[30,61,30,62],[31,50,31,54],[31,55,31,56],[31,57,31,58],[28,50,28,54],[28,55,28,56],[28,57,28,58],[28,59,28,60],[28,61,28,62],[30,50,30,54],[30,55,30,56],[30,57,30,58],[29,37,29,41],[29,42,29,45],[29,46,29,49],[29,50,29,54],[30,37,30,41],[30,42,30,45],[30,46,30,49],[29,55,29,56],[29,57,29,58],[33,61,33,62],[32,7,32,13],[32,14,32,17],[32,18,32,21],[32,22,32,26],[32,27,32,31],[31,7,31,13],[31,14,31,17],[31,18,31,21],[31,22,31,26],[31,27,31,31],[31,59,31,60],[31,61,31,62],[32,32,32,36],[32,37,32,41],[32,42,32,45],[32,46,32,49],[32,50,32,54],[31,32,31,36],[31,37,31,41],[31,42,31,45],[31,46,31,49],[32,55,32,56],[32,57,32,58],[32,59,32,60],[32,61,32,62],[34,59,34,60],[34,61,34,62],[33,50,33,54],[33,55,33,56],[33,57,33,58],[33,7,33,13],[33,14,33,17],[33,18,33,21],[33,22,33,26],[33,27,33,31],[34,7,34,13],[34,14,34,17],[34,18,34,21],[34,22,34,26],[34,27,34,31],[34,32,34,36],[34,37,34,41],[34,42,34,45],[34,46,34,49],[33,32,33,36],[33,37,33,41],[33,42,33,45],[33,46,33,49],[33,59,33,60],[36,50,36,54],[36,55,36,56],[36,57,36,58],[35,32,35,36],[35,37,35,41],[35,42,35,45],[34,50,34,54],[34,55,34,56],[34,57,34,58],[35,7,35,13],[35,14,35,17],[35,18,35,21],[36,7,36,13],[36,14,36,17],[36,18,36,21],[36,22,36,26],[36,27,36,31],[36,32,36,36],[35,22,35,26],[35,27,35,31],[39,61,39,62],[35,46,35,49],[35,50,35,54],[36,37,36,41],[36,42,36,45],[36,46,36,49],[35,55,35,56],[35,57,35,58],[38,7,38,13],[38,14,38,17],[38,18,38,21],[38,22,38,26],[38,27,38,31],[37,7,37,13],[37,14,37,17],[37,18,37,21],[37,22,37,26],[37,27,37,31],[35,59,35,60],[35,61,35,62],[36,59,36,60],[36,61,36,62],[37,50,37,54],[37,55,37,56],[37,61,37,62],[38,32,38,36],[38,37,38,41],[38,42,38,45],[38,46,38,49],[38,50,38,54],[37,32,37,36],[37,37,37,41],[37,42,37,45],[37,46,37,49],[38,55,38,56],[38,57,38,58],[38,59,38,60],[38,61,38,62],[37,57,37,58],[40,32,40,36],[40,37,40,41],[40,42,40,45],[40,46,40,49],[39,32,39,36],[39,37,39,41],[39,42,39,45],[39,46,39,49],[37,59,37,60],[39,59,39,60],[39,14,39,17],[39,18,39,21],[39,22,39,26],[39,27,39,31],[40,7,40,13],[40,14,40,17],[40,18,40,21],[40,22,40,26],[40,27,40,31],[22,14,22,21],[42,61,42,62],[42,32,42,36],[42,37,42,41],[42,42,42,45],[42,46,42,49],[42,50,42,54],[42,7,42,13],[42,14,42,17],[42,18,42,21],[42,22,42,26],[42,27,42,31],[42,55,42,56],[42,57,42,58],[42,59,42,60],[40,50,40,54],[40,55,40,56],[40,57,40,58],[40,59,40,60],[40,61,40,62],[39,50,39,54],[39,55,39,56],[39,57,39,58],[39,7,39,13]]}
[null,"様式第１号"]
[null,null,null,null,null,null,null,null,{"$f":"\"令和\"&はじめに!C7&\"年度労働保険事務組合報奨金交付申請書(事務組合控)\"","v":"令和8年度労働保険事務組合報奨金交付申請書(事務組合控)"},null,null,null,null,null,null,null,null,null,null,null,null,null,null,null,null,null,null,null,null,null,null,null,null,null,null,null,null,null,null,null,null,null,null,null,null,null,null,null,null,null,null,null,null,null,null,null,null,null,null,null,null,null,null,null,null,null,"(　　　　枚のうち　　　枚目)　"]
[]
[]
[null,"下記のとおり報奨金の交付を請求します。",null,null,null,null,null,null,null,null,null,null,null,null,null,null,null,null,null,null,null,null,null,null,null,null,null,null,null,null,"令和",null,null,null,"年",null,null,"月",null,null,"日",null,null,"(振込を希望する金融機関)"]
[null,null,null,null,null,null,null,null,null,null,null,null,null,null,null,null,null,null,null,null,null,null,null,null,null,null,null,null,null,null,null,null,null,null,null,null,null,null,null,null,null,null,"金融機関","（名称）",null,null,null,null,null,null,null,null,null,null,null,null,"ゆうちょ銀行","（名称）"]
[null,null,null,null,null,null,null,null,null,null,null,null,null,null,null,null,null,null,null,null,null,null,null,null,null,null,null,null,null,null,null,null,null,null,null,null,null,null,null,null,null,null,null,{"$f":"IF(基本項目入力!C14=\"ゆうちょ銀行\",\"\",基本項目入力!B14)","v":0},null,null,null,{"$f":"基本項目入力!C14","v":0},null,null,{"$f":"基本項目入力!B16","v":0},null,null,null,"店",null,null,{"$f":"IF(基本項目入力!C14=\"ゆうちょ銀行\",基本項目入力!B14,\"\")","v":""}]
[null,{"$f":"はじめに!C9","v":"愛知"},null,null,null,null,null,null,null,null,"労働保険事務組合の\n名称",null,null,null,null,null,{"$f":"基本項目入力!B5","v":0},null,null,null,null,null,null,null,null,null,null,null,null,null,null,"\n電話番号",null,null,null,{"$f":"基本項目入力!B8","v":0}]
[null,null,null,null,null,null,null,null,"労働局長　殿"]
[null,null,null,null,null,null,null,null,null,null,null,null,null,null,null,null,null,null,null,null,null,null,null,null,null,null,null,null,null,null,null,null,null,null,null,null,null,null,null,null,null,null,null,"（口座）"]
[null,null,null,null,null,null,null,null,null,null,"\n所在地",null,null,null,null,null,{"$f":"基本項目入力!B7","v":0},null,null,null,null,null,null,null,null,null,null,null,null,null,null,"\n郵便番号",null,null,null,{"$f":"基本項目入力!B6","v":0},null,null,null,null,null,null,null,null,{"$f":"基本項目入力!C17","v":0},null,null,null,"第",{"$f":"基本項目入力!B17","v":0},null,null,null,null,"号",null,null,"（所在地）"]
[null,null,null,null,null,null,null,null,null,null,null,null,null,null,null,null,null,null,null,null,null,null,null,null,null,null,null,null,null,null,null,null,null,null,null,null,null,null,null,null,null,null,null,null,null,null,null,null,null,null,null,null,null,null,null,null,null,{"$f":"IF(基本項目入力!C14=\"ゆうちょ銀行\",基本項目入力!B15,\"\")","v":""}]
[null,null,null,null,null,null,null,null,null,null,null,null,null,null,null,null,null,null,null,null,null,null,null,null,null,null,null,null,null,null,null,null,null,null,null,null,null,null,null,null,null,null,null,"（名義人）"]
[null,null,null,null,null,null,null,null,null,null,"\n代表者氏名",null,null,null,null,null,{"$f":"基本項目入力!B9","v":0},null,null,null,null,null,null,null,null,null,null,null,null,"記名又は署名",null,"\n作成者氏名",null,null,null,{"$f":"基本項目入力!B10","v":0},null,null,null,null,null,null,null,{"$f":"基本項目入力!B18","v":0}]
[]
[]
[]
[]
[]
[]
[]
[null,"【令和4年度概算・確定保険料納付状況】"]
[null,"基幹番号",null,null,null,null,null,"①",null,null,null,null,null,null,{"$f":"\"令和　\"&はじめに!C7-1&\"　年度概算・\"","v":"令和　7　年度概算・"},null,null,null,null,null,null,null,"④",null,null,null,null,"⑤",null,null,null,null,"⑥",null,null,null,null,"⑦",null,null,null,null,"⑧",null,null,null,"⑨",null,null,null,"⑩",null,null,null,null,"規模・保険関係別委託事業数"]
[null,null,null,null,null,null,null,{"$f":"\"令和　\"&はじめに!C7-1&\"　年度\"","v":"令和　7　年度"},null,null,null,null,null,null,"確定保険料に係る",null,null,null,null,null,null,null,null,null,null,null,null,"①に係る\n納付済額",null,null,null,null,"⑤のうち督促\nを受けた額",null,null,null,null,"(⑤　－　⑥)",null,null,null,null,"②に係る\n納付済額",null,null,null,"③に係る\n納付済額",null,null,null,"(⑤＋⑧＋⑨)"]
[null,null,null,null,null,null,null,"確定保険料総額",null,null,null,null,null,null,"②",null,null,null,"③",null,null,null,"(①＋②＋③)",null,null,null,null,null,null,null,null,null,null,null,null,null,null,null,null,null,null,null,null,null,null,null,null,null,null,null,null,null,null,null,null,"⑪","甲",null,null,"⑫","乙"]
[null,null,null,null,null,null,null,null,null,null,null,null,null,null,"追徴金",null,null,null,"延滞金",null,null,null,null,null,null,null,null,null,null,null,null,null,null,null,null,null,null,null,null,null,null,null,null,null,null,null,null,null,null,null,null,null,null,null,null,"Ａ",null,"Ｂ",null,"Ａ",null,"Ｂ"]
[]
[]
[]
[]
[]
[]
[]
[]
[]
[]
[]
[]
[]
[]
[]
[null,"小計",null,null,null,null,null,null,null,null,null,null,null,null,null,null,null,null,null,null,null,null,"イ",null,null,null,null,null,null,null,null,null,null,null,null,null,null,"ロ",null,null,null,null,null,null,null,null,null,null,null,null,"ハ",null,null,null,null,"ニ",null,"ホ",null,"ヘ",null,"ト"]
[null,null,null,null,null,null,null,{"$f":"SUM(H27:N41)","v":0},null,null,null,null,null,null,{"$f":"SUM(O27:R41)","v":0},null,null,null,{"$f":"SUM(S27:V41)","v":0},null,null,null,{"$f":"SUM(W27:AA41)","v":0},null,null,null,null,{"$f":"SUM(AB27:AF41)","v":0},null,null,null,null,{"$f":"SUM(AG27:AK41)","v":0},null,null,null,null,{"$f":"SUM(AL27:AP41)","v":0},null,null,null,null,{"$f":"SUM(AQ27:AT41)","v":0},null,null,null,{"$f":"SUM(AU27:AX41)","v":0},null,null,null,{"$f":"SUM(AY27:BC41)","v":0},null,null,null,null,{"$f":"SUM(BD27:BE41)","v":0},null,{"$f":"SUM(BF27:BG41)","v":0},null,{"$f":"SUM(BH27:BI41)","v":0},null,{"$f":"SUM(BJ27:BK41)","v":0}]

{"sheet":"1個別分","index":4,"n_rows":43,"n_cols":67,"rows_kept":43,"cut":false,"hidden":true,"merged":[[6,57,9,66],[7,1,8,4],[7,10,8,15],[7,16,8,30],[7,31,8,34],[7,35,8,40],[8,47,8,49],[4,32,4,33],[4,35,4,36],[4,38,4,39],[5,42,14,42],[5,47,5,49],[5,56,14,56],[6,43,7,46],[6,47,7,49],[6,50,7,53],[6,54,7,54],[11,57,14,66],[13,10,14,15],[13,16,14,24],[13,31,14,34],[13,35,14,40],[13,43,14,55],[10,10,11,15],[10,16,11,30],[10,31,11,34],[10,35,11,40],[10,44,10,46],[10,49,10,53],[22,1,25,6],[22,55,23,62],[23,27,24,31],[23,32,24,36],[23,37,24,41],[23,42,24,45],[23,46,24,49],[23,50,24,54],[24,22,24,26],[24,56,24,57],[24,60,24,61],[25,14,25,17],[25,18,25,21],[25,55,25,56],[25,57,25,58],[25,59,25,60],[25,61,25,62],[23,7,23,13],[24,7,24,13],[27,61,27,62],[26,59,26,60],[26,61,26,62],[27,7,27,13],[27,14,27,17],[27,18,27,21],[27,22,27,26],[27,27,27,31],[27,32,27,36],[27,37,27,41],[27,42,27,45],[26,37,26,41],[26,42,26,45],[26,46,26,49],[26,50,26,54],[26,55,26,56],[26,57,26,58],[26,7,26,13],[26,14,26,17],[26,18,26,21],[26,22,26,26],[26,27,26,31],[26,32,26,36],[28,18,28,21],[28,22,28,26],[28,27,28,31],[28,32,28,36],[27,46,27,49],[27,50,27,54],[27,55,27,56],[27,57,27,58],[27,59,27,60],[29,46,29,49],[29,50,29,54],[29,55,29,56],[29,57,29,58],[29,59,29,60],[29,61,29,62],[28,59,28,60],[28,61,28,62],[29,7,29,13],[29,14,29,17],[29,18,29,21],[29,22,29,26],[29,27,29,31],[29,32,29,36],[29,37,29,41],[29,42,29,45],[28,37,28,41],[28,42,28,45],[28,46,28,49],[28,50,28,54],[28,55,28,56],[28,57,28,58],[28,7,28,13],[28,14,28,17],[31,61,31,62],[30,59,30,60],[30,61,30,62],[31,7,31,13],[31,14,31,17],[31,18,31,21],[31,22,31,26],[31,27,31,31],[31,32,31,36],[31,37,31,41],[31,42,31,45],[30,37,30,41],[30,42,30,45],[30,46,30,49],[30,50,30,54],[30,55,30,56],[30,57,30,58],[30,7,30,13],[30,14,30,17],[30,18,30,21],[30,22,30,26],[30,27,30,31],[30,32,30,36],[32,18,32,21],[32,22,32,26],[32,27,32,31],[32,32,32,36],[31,46,31,49],[31,50,31,54],[31,55,31,56],[31,57,31,58],[31,59,31,60],[33,46,33,49],[33,50,33,54],[33,55,33,56],[33,57,33,58],[33,59,33,60],[33,61,33,62],[32,59,32,60],[32,61,32,62],[33,7,33,13],[33,14,33,17],[33,18,33,21],[33,22,33,26],[33,27,33,31],[33,32,33,36],[33,37,33,41],[33,42,33,45],[32,37,32,41],[32,42,32,45],[32,46,32,49],[32,50,32,54],[32,55,32,56],[32,57,32,58],[32,7,32,13],[32,14,32,17],[35,61,35,62],[34,59,34,60],[34,61,34,62],[35,7,35,13],[35,14,35,17],[35,18,35,21],[35,22,35,26],[35,27,35,31],[35,32,35,36],[35,37,35,41],[35,42,35,45],[34,37,34,41],[34,42,34,45],[34,46,34,49],[34,50,34,54],[34,55,34,56],[34,57,34,58],[34,7,34,13],[34,14,34,17],[34,18,34,21],[34,22,34,26],[34,27,34,31],[34,32,34,36],[36,18,36,21],[36,22,36,26],[36,27,36,31],[36,32,36,36],[35,46,35,49],[35,50,35,54],[35,55,35,56],[35,57,35,58],[35,59,35,60],[37,46,37,49],[37,50,37,54],[37,55,37,56],[37,57,37,58],[37,59,37,60],[37,61,37,62],[36,59,36,60],[36,61,36,62],[37,7,37,13],[37,14,37,17],[37,18,37,21],[37,22,37,26],[37,27,37,31],[37,32,37,36],[37,37,37,41],[37,42,37,45],[36,37,36,41],[36,42,36,45],[36,46,36,49],[36,50,36,54],[36,55,36,56],[36,57,36,58],[36,7,36,13],[36,14,36,17],[39,42,39,45],[38,37,38,41],[38,42,38,45],[38,50,38,54],[38,55,38,56],[38,57,38,58],[38,7,38,13],[38,14,38,17],[38,18,38,21],[38,22,38,26],[38,27,38,31],[38,32,38,36],[38,61,38,62],[38,46,38,49],[41,1,42,6],[42,7,42,13],[42,14,42,17],[42,18,42,21],[42,22,42,26],[42,27,42,31],[42,32,42,36],[42,37,42,41],[40,37,40,41],[40,7,40,13],[40,14,40,17],[40,18,40,21],[40,22,40,26],[40,27,40,31],[40,32,40,36],[39,7,39,13],[39,14,39,17],[39,18,39,21],[39,22,39,26],[39,27,39,31],[39,32,39,36],[39,37,39,41],[22,14,22,21],[23,14,23,21],[42,61,42,62],[0,45,1,58],[42,42,42,45],[42,46,42,49],[42,50,42,54],[42,55,42,56],[42,57,42,58],[42,59,42,60],[40,59,40,60],[40,61,40,62],[40,42,40,45],[40,46,40,49],[40,50,40,54],[40,55,40,56],[40,57,40,58],[39,46,39,49],[39,50,39,54],[39,55,39,56],[39,57,39,58],[39,59,39,60],[39,61,39,62],[38,59,38,60]]}
[null,"様式第１号",null,null,null,null,null,null,null,null,null,null,null,null,null,null,null,null,null,null,null,null,null,null,null,null,null,null,null,null,null,null,null,null,null,null,null,null,null,null,null,null,null,null,null,"年度途中（個別分）詳細"]
[null,null,null,null,null,null,null,null,{"$f":"\"令和\"&はじめに!C7&\"年度労働保険事務組合報奨金交付申請書(事務組合控)\"","v":"令和8年度労働保険事務組合報奨金交付申請書(事務組合控)"},null,null,null,null,null,null,null,null,null,null,null,null,null,null,null,null,null,null,null,null,null,null,null,null,null,null,null,null,null,null,null,null,null,null,null,null,null,null,null,null,null,null,null,null,null,null,null,null,null,null,null,null,null,null,null,null,null,"(　　　　枚のうち　　　枚目)　"]
[]
[]
[null,"下記のとおり報奨金の交付を請求します。",null,null,null,null,null,null,null,null,null,null,null,null,null,null,null,null,null,null,null,null,null,null,null,null,null,null,null,null,"令和",null,null,null,"年",null,null,"月",null,null,"日",null,null,"(振込を希望する金融機関)"]
[null,null,null,null,null,null,null,null,null,null,null,null,null,null,null,null,null,null,null,null,null,null,null,null,null,null,null,null,null,null,null,null,null,null,null,null,null,null,null,null,null,null,"金融機関","（名称）",null,null,null,null,null,null,null,null,null,null,null,null,"ゆうちょ銀行","（名称）"]
[null,null,null,null,null,null,null,null,null,null,null,null,null,null,null,null,null,null,null,null,null,null,null,null,null,null,null,null,null,null,null,null,null,null,null,null,null,null,null,null,null,null,null,{"$f":"IF(基本項目入力!C14=\"ゆうちょ銀行\",\"\",基本項目入力!B14)","v":0},null,null,null,{"$f":"基本項目入力!C14","v":0},null,null,{"$f":"基本項目入力!B16","v":0},null,null,null,"店",null,null,{"$f":"IF(基本項目入力!C14=\"ゆうちょ銀行\",基本項目入力!B14,\"\")","v":""}]
[null,{"$f":"はじめに!C9","v":"愛知"},null,null,null,null,null,null,null,null,"労働保険事務組合の\n名称",null,null,null,null,null,{"$f":"基本項目入力!B5","v":0},null,null,null,null,null,null,null,null,null,null,null,null,null,null,"\n電話番号",null,null,null,{"$f":"基本項目入力!B8","v":0}]
[null,null,null,null,null,null,null,null,"労働局長　殿"]
[null,null,null,null,null,null,null,null,null,null,null,null,null,null,null,null,null,null,null,null,null,null,null,null,null,null,null,null,null,null,null,null,null,null,null,null,null,null,null,null,null,null,null,"（口座）"]
[null,null,null,null,null,null,null,null,null,null,"\n所在地",null,null,null,null,null,{"$f":"基本項目入力!B7","v":0},null,null,null,null,null,null,null,null,null,null,null,null,null,null,"\n郵便番号",null,null,null,{"$f":"基本項目入力!B6","v":0},null,null,null,null,null,null,null,null,{"$f":"基本項目入力!C17","v":0},null,null,null,"第",{"$f":"基本項目入力!B17","v":0},null,null,null,null,"号",null,null,"（所在地）"]
[null,null,null,null,null,null,null,null,null,null,null,null,null,null,null,null,null,null,null,null,null,null,null,null,null,null,null,null,null,null,null,null,null,null,null,null,null,null,null,null,null,null,null,null,null,null,null,null,null,null,null,null,null,null,null,null,null,{"$f":"IF(基本項目入力!C14=\"ゆうちょ銀行\",基本項目入力!B15,\"\")","v":""}]
[null,null,null,null,null,null,null,null,null,null,null,null,null,null,null,null,null,null,null,null,null,null,null,null,null,null,null,null,null,null,null,null,null,null,null,null,null,null,null,null,null,null,null,"（名義人）"]
[null,null,null,null,null,null,null,null,null,null,"\n代表者氏名",null,null,null,null,null,{"$f":"基本項目入力!B9","v":0},null,null,null,null,null,null,null,null,null,null,null,null,"記名又は署名",null,"\n作成者氏名",null,null,null,{"$f":"基本項目入力!B10","v":0},null,null,null,null,null,null,null,{"$f":"基本項目入力!B18","v":0}]
[]
[]
[]
[]
[]
[]
[]
[null,"【令和3年度概算・確定保険料納付状況】"]
[null,"基幹番号",null,null,null,null,null,"①",null,null,null,null,null,null,{"$f":"'1'!O23:V23","v":"令和　7　年度概算・"},null,null,null,null,null,null,null,"④",null,null,null,null,"⑤",null,null,null,null,"⑥",null,null,null,null,"⑦",null,null,null,null,"⑧",null,null,null,"⑨",null,null,null,"⑩",null,null,null,null,"規模・保険関係別委託事業数"]
[null,null,null,null,null,null,null,{"$f":"'1'!H24:N24","v":"令和　7　年度"},null,null,null,null,null,null,{"$f":"'1'!O24:V24","v":"確定保険料に係る"},null,null,null,null,null,null,null,null,null,null,null,null,"①に係る\n納付済額",null,null,null,null,"⑤のうち督促\nを受けた額",null,null,null,null,"(⑤　－　⑥)",null,null,null,null,"②に係る\n納付済額",null,null,null,"③に係る\n納付済額",null,null,null,"(⑤＋⑧＋⑨)"]
[null,null,null,null,null,null,null,{"$f":"'1'!H25:N25","v":"確定保険料総額"},null,null,null,null,null,null,"②",null,null,null,"③",null,null,null,"(①＋②＋③)",null,null,null,null,null,null,null,null,null,null,null,null,null,null,null,null,null,null,null,null,null,null,null,null,null,null,null,null,null,null,null,null,"⑪","甲",null,null,"⑫","乙"]
[null,null,null,null,null,null,null,null,null,null,null,null,null,null,"追徴金",null,null,null,"延滞金",null,null,null,null,null,null,null,null,null,null,null,null,null,null,null,null,null,null,null,null,null,null,null,null,null,null,null,null,null,null,null,null,null,null,null,null,"Ａ",null,"Ｂ",null,"Ａ",null,"Ｂ"]
[]
[]
[]
[]
[]
[]
[]
[]
[]
[]
[]
[]
[]
[]
[]
[null,"小計",null,null,null,null,null,null,null,null,null,null,null,null,null,null,null,null,null,null,null,null,"イ",null,null,null,null,null,null,null,null,null,null,null,null,null,null,"ロ",null,null,null,null,null,null,null,null,null,null,null,null,"ハ",null,null,null,null,"ニ",null,"ホ",null,"ヘ",null,"ト"]
[null,null,null,null,null,null,null,{"$f":"SUM(H27:N41)","v":0},null,null,null,null,null,null,{"$f":"SUM(O27:R41)","v":0},null,null,null,{"$f":"SUM(S27:V41)","v":0},null,null,null,{"$f":"SUM(W27:AA41)","v":0},null,null,null,null,{"$f":"SUM(AB27:AF41)","v":0},null,null,null,null,{"$f":"SUM(AG27:AK41)","v":0},null,null,null,null,{"$f":"SUM(AL27:AP41)","v":0},null,null,null,null,{"$f":"SUM(AQ27:AT41)","v":0},null,null,null,{"$f":"SUM(AU27:AX41)","v":0},null,null,null,{"$f":"SUM(AY27:BC41)","v":0},null,null,null,null,{"$f":"SUM(BD27:BE41)","v":0},null,{"$f":"SUM(BF27:BG41)","v":0},null,{"$f":"SUM(BH27:BI41)","v":0},null,{"$f":"SUM(BJ27:BK41)","v":0}]

{"sheet":"１②","index":5,"n_rows":47,"n_cols":67,"rows_kept":47,"cut":false,"hidden":false,"merged":[[41,43,41,62],[42,43,44,62],[12,53,13,59],[12,60,13,65],[3,1,6,6],[3,7,4,20],[3,21,4,26],[4,33,5,37],[4,38,5,41],[4,42,5,45],[5,7,6,13],[5,14,6,20],[5,27,5,32],[5,46,5,50],[6,21,6,23],[6,24,6,26],[10,53,11,59],[10,60,11,65],[8,27,8,32],[8,33,8,37],[8,38,8,41],[8,42,8,45],[8,46,8,50],[7,24,7,26],[14,53,15,59],[14,60,15,64],[14,65,15,65],[17,1,18,6],[21,1,22,11],[21,12,22,22],[15,7,15,13],[15,14,15,20],[15,21,15,23],[15,24,15,26],[15,27,15,32],[15,33,15,37],[15,38,15,41],[15,42,15,45],[15,46,15,50],[16,7,16,13],[16,42,16,45],[16,46,16,50],[18,46,18,50],[18,42,18,45],[18,38,18,41],[16,14,16,20],[16,33,16,37],[18,7,18,13],[24,12,25,22],[24,1,25,11],[18,33,18,37],[18,27,18,32],[18,24,18,26],[7,21,7,23],[7,14,7,20],[35,12,38,18],[30,1,31,5],[30,6,31,8],[30,9,31,9],[30,21,33,28],[10,21,10,23],[10,24,10,26],[10,27,10,32],[10,33,10,37],[12,7,12,13],[12,14,12,20],[12,21,12,23],[12,24,12,26],[12,27,12,32],[12,33,12,37],[13,14,13,20],[13,21,13,23],[30,53,33,60],[32,1,33,5],[32,6,33,9],[32,29,33,34],[32,35,33,40],[32,41,33,46],[32,47,33,52],[30,29,31,52],[7,7,7,13],[8,7,8,13],[8,14,8,20],[8,21,8,23],[8,24,8,26],[7,46,7,50],[7,42,7,45],[7,38,7,41],[7,33,7,37],[7,27,7,32],[9,33,9,37],[9,38,9,41],[9,42,9,45],[9,46,9,50],[10,7,10,13],[10,14,10,20],[10,38,10,41],[10,42,10,45],[10,46,10,50],[9,7,9,13],[9,14,9,20],[9,21,9,23],[9,24,9,26],[9,27,9,32],[11,33,11,37],[11,38,11,41],[11,42,11,45],[11,46,11,50],[11,7,11,13],[11,14,11,20],[11,21,11,23],[11,24,11,26],[11,27,11,32],[14,7,14,13],[14,14,14,20],[14,21,14,23],[14,24,14,26],[14,27,14,32],[14,33,14,37],[14,38,14,41],[13,7,13,13],[13,24,13,26],[13,27,13,32],[12,38,12,41],[12,42,12,45],[12,46,12,50],[13,42,13,45],[13,46,13,50],[14,42,14,45],[14,46,14,50],[18,21,18,23],[18,14,18,20],[13,33,13,37],[13,38,13,41],[16,21,16,23],[16,24,16,26],[16,38,16,41],[16,27,16,32],[35,53,38,54],[35,55,38,60],[35,29,38,30],[35,35,38,36],[35,21,38,28],[35,41,38,42],[35,47,38,48],[35,31,38,34],[35,37,38,40],[35,43,38,46],[35,49,38,52]]}
[null,null,null,null,null,null,null,null,null,null,null,null,null,null,null,null,null,null,null,null,null,null,null,null,null,null,null,null,null,null,null,null,null,null,null,null,null,null,null,null,null,null,null,null,null,null,null,null,null,null,null,null,null,null,null,null,null,null,null,null,null,null,null,null,null,null,"(　　　　枚のうち　　　枚目)　"]
[]
[null,{"$f":"\"【令和\"&はじめに!C7-1&\"年度算定基礎調査等に係る差額保険料納付状況】\"","v":"【令和7年度算定基礎調査等に係る差額保険料納付状況】"},null,null,null,null,null,null,null,null,null,null,null,null,null,null,null,null,null,null,null,null,null,null,null,null,null,null,null,null,null,null,null,null,null,null,null,null,null,null,null,null,null,null,null,null,null,null,null,null,null,null," 【口座振替制採用の有無等】"]
[null,null,null,null,null,null,null,{"$f":"\"令和 \"&はじめに!C7-1&\" 年度算定基礎調査等に係る差額保険料\"","v":"令和 7 年度算定基礎調査等に係る差額保険料"},null,null,null,null,null,null,null,null,null,null,null,null,null,"差額保険料に係る",null,null,null,null,null,"⑰",null,null,null,null,null,"⑱",null,null,null,null,"⑲",null,null,null,"⑳",null,null,null,"㉑"]
[null,null,null,null,null,null,null,null,null,null,null,null,null,null,null,null,null,null,null,null,null,null,null,null,null,null,null,null,null,null,null,null,null,"(⑬－⑭)に係る\n納付済額",null,null,null,null,"⑮に係る\n納付済額",null,null,null,"⑯に係る\n納付済額",null,null,null,null,null,null,null,null,null,"（１）　口座振替制採用の有無"]
[null,null,null,null,null,null,null,"⑬　増額分",null,null,null,null,null,null,"⑭　減額分",null,null,null,null,null,null,"⑮",null,null,"⑯",null,null,"(⑬－⑭＋⑮＋⑯)",null,null,null,null,null,null,null,null,null,null,null,null,null,null,null,null,null,null,"(⑱＋⑲＋⑳)",null,null,null,null,null,null,"１　総コンシステムにより採用"]
[null,null,null,null,null,null,null,null,null,null,null,null,null,null,null,null,null,null,null,null,null,"追徴金",null,null,"延滞金",null,null,null,null,null,null,null,null,null,null,null,null,null,null,null,null,null,null,null,null,null,null,null,null,null,null,null,null,"２　総コンシステム以外の方法により採用"]
[null,null,null,null,null,null,null,null,null,null,null,null,null,null,null,null,null,null,null,null,null,null,null,null,null,null,null,null,null,null,null,null,null,null,null,null,null,null,null,null,null,null,null,null,null,null,null,null,null,null,null,null,null,"３　採用していない"]
[]
[null,null,null,null,null,null,null,null,null,null,null,null,null,null,null,null,null,null,null,null,null,null,null,null,null,null,null,null,null,null,null,null,null,null,null,null,null,null,null,null,null,null,null,null,null,null,null,null,null,null,null,null,"（２）　口座振替制利用率"]
[null,null,null,null,null,null,null,null,null,null,null,null,null,null,null,null,null,null,null,null,null,null,null,null,null,null,null,null,null,null,null,null,null,null,null,null,null,null,null,null,null,null,null,null,null,null,null,null,null,null,null,null,null,"全委託事業数"]
[]
[null,null,null,null,null,null,null,null,null,null,null,null,null,null,null,null,null,null,null,null,null,null,null,null,null,null,null,null,null,null,null,null,null,null,null,null,null,null,null,null,null,null,null,null,null,null,null,null,null,null,null,null,null,"口座振替制利用事業数"]
[]
[null,null,null,null,null,null,null,null,null,null,null,null,null,null,null,null,null,null,null,null,null,null,null,null,null,null,null,null,null,null,null,null,null,null,null,null,null,null,null,null,null,null,null,null,null,null,null,null,null,null,null,null,null,"口座振替制利用率",null,null,null,null,null,null,null,null,null,null,null,"％"]
[]
[]
[null,"小計",null,null,null,null,null,null,null,null,null,null,null,null,"a",null,null,null,null,null,null,null,null,null,null,null,null,"b",null,null,null,null,null,null,null,null,null,null,null,null,null,null,null,null,null,null,"c"]
[null,null,null,null,null,null,null,{"$f":"SUM(H8:N17)","v":0},null,null,null,null,null,null,{"$f":"SUM(O8:U17)","v":0},null,null,null,null,null,null,{"$f":"SUM(V8:X17)","v":0},null,null,{"$f":"SUM(Y8:AA17)","v":0},null,null,{"$f":"SUM(AB8:AG17)","v":0},null,null,null,null,null,{"$f":"SUM(AH8:AL17)","v":0},null,null,null,null,{"$f":"SUM(AM8:AP17)","v":0},null,null,null,{"$f":"SUM(AQ8:AT17)","v":0},null,null,null,{"$f":"SUM(AU8:AY17)","v":0}]
[]
[]
[null,"前年度報奨金交付要件\n労働保険料総額",null,null,null,null,null,null,null,null,null,null,"前年度報奨金交付要件\n労働保険料納付済額"]
[]
[null,"d（イ＋b）",null,null,null,null,null,null,null,null,null,null,"e（ハ＋c）"]
[null,{"$f":"SUM('1'!W27:AA41,'１②'!AB19:AG19)","v":0},null,null,null,null,null,null,null,null,null,null,{"$f":"SUM('1'!AY27:BC41,'１②'!AU19:AY19)","v":0}]
[]
[]
[null,"【総　括】"]
[null,"　（１）　納付率等",null,null,null,null,null,null,null,null,null,"　（２）　報奨金算定基準日",null,null,null,null,null,null,null,null,"　（３）　定率及び定額による額（所定額）"]
[]
[null,"納付率（ e／d ）",null,null,null,null,{"$f":"M25/B25","v":{"$error":"#DIV/0!"}},null,null,"％",null,null,"１","7／10",null,null,null,null,null,null,null,"定率分",null,null,null,null,null,null,null,"定額分",null,null,null,null,null,null,null,null,null,null,null,null,null,null,null,null,null,null,null,null,null,null,null,"合計"]
[]
[null,"前年度保険料\n滞納処分の有無",null,null,null,null,"有 ・ 無",null,null,null,null,null,"２","７／１8",17,null,null,null,null,null,null,null,null,null,null,null,null,null,null,12400,null,null,null,null,null,6200,null,null,null,null,null,6200,null,null,null,null,null,3100]
[]
[null,null,null,null,null,null,null,null,null,null,null,null,null,"7／１7の場合の理由",null,null,null,null,null,null,null," (ロ－a )×2.0／100",null,null,null,null,null,null,null," ニ",null," 二×12,400円",null,null,null," ホ",null," ホ×6,200円",null,null,null," へ",null," へ×6,200円",null,null,null," ト",null," ト×3,100円",null,null,null,"α",null,"㉒"]
[null,null,null,null,null,null,null,null,null,null,null,null,null,null,null,null,null,null,null,null,null,{"$f":"ROUNDDOWN((SUM('1'!AL27:AP41)-SUM(O8:U17))*2/100,-2)","v":0},null,null,null,null,null,null,null,{"$f":"SUM('1'!BD27:BE41)","v":0},null,{"$f":"AD36*12400","v":0},null,null,null,{"$f":"SUM('1'!BF27:BG41)","v":0},null,{"$f":"AJ36*6200","v":0},null,null,null,{"$f":"SUM('1'!BH27:BI41)","v":0},null,{"$f":"AP36*6200","v":0},null,null,null,{"$f":"SUM('1'!BJ27:BK41)","v":0},null,{"$f":"AV36*3100","v":0},null,null,null,{"$f":"SUM(AD36,AJ36,AP36,AV36)","v":0},null,{"$f":"SUM(AF36,AL36,AR36,AX36)","v":0}]
[]
[]
[]
[]
[null,"※　調整措置による額（㉒＞（ロ－a）の場合）",null,null,null,null,null,null,null,null,null,null,null,null,"※　５％減額措置による減",null,null,null,null,null,null,null,null,null,null,null,null,"※　交付予定額"]
[null,"㉓（ロ－a）",null,null,null,null,null,null,null,null,null,null,"円",null,"㉔",null,null,null,null,null,null,null,null,null,null,"円",null,"㉕",null,null,null,null,null,null,null,null,null,null,"円",null,null,null,null,"【事務組合名】"]
[null,null,null,null,null,null,null,null,null,null,null,null,null,null,null,null,null,null,null,null,null,null,null,null,null,null,null,null,null,null,null,null,null,null,null,null,null,null,null,null,null,null,null,{"$f":"基本項目入力!B5","v":0}]
[]
[]
[]
[null,null,null,"※","報奨金算定基準日が土曜日、日曜日又は国民の祝日に当たるときには、７月１０日又は7月１８日の直後のこれらの日以外の日を報奨金算定基準日とする。"]

{"sheet":"一般拠出","index":6,"n_rows":51,"n_cols":65,"rows_kept":51,"cut":false,"hidden":false,"merged":[[5,3,8,8],[6,16,7,20],[16,3,17,8],[20,3,23,8],[20,9,21,22],[9,9,9,15],[10,9,10,15],[11,9,11,15],[12,9,12,15],[13,9,13,15],[14,9,14,15],[15,9,15,15],[17,9,17,15],[9,16,9,20],[10,16,10,20],[11,16,11,20],[12,16,12,20],[13,16,13,20],[14,16,14,20],[15,16,15,20],[17,16,17,20],[6,9,6,15],[7,9,7,15],[20,23,21,30],[21,37,22,41],[21,42,22,45],[21,46,22,49],[22,9,23,15],[22,16,23,22],[22,23,23,26],[22,27,23,30],[22,31,22,36],[24,23,24,26],[24,16,24,22],[25,9,25,15],[25,16,25,22],[25,23,25,26],[45,2,47,7],[45,8,47,15],[22,50,22,54],[31,3,32,8],[34,3,37,8],[34,9,35,16],[34,17,35,24],[42,2,44,7],[42,26,44,36],[24,9,24,15],[24,50,24,54],[24,46,24,49],[24,42,24,45],[24,37,24,41],[24,31,24,36],[24,27,24,30],[25,50,25,54],[26,9,26,15],[26,16,26,22],[26,23,26,26],[26,27,26,30],[26,31,26,36],[26,37,26,41],[26,42,26,45],[26,46,26,49],[26,50,26,54],[25,27,25,30],[25,31,25,36],[25,37,25,41],[25,42,25,45],[25,46,25,49],[27,37,27,41],[27,42,27,45],[27,46,27,49],[27,50,27,54],[28,9,28,15],[28,16,28,22],[28,23,28,26],[28,27,28,30],[28,31,28,36],[28,37,28,41],[28,42,28,45],[28,46,28,49],[28,50,28,54],[27,9,27,15],[27,16,27,22],[27,23,27,26],[27,27,27,30],[27,31,27,36],[29,37,29,41],[29,42,29,45],[29,46,29,49],[29,50,29,54],[30,9,30,15],[30,16,30,22],[30,23,30,26],[30,27,30,30],[30,31,30,36],[30,37,30,41],[30,42,30,45],[30,46,30,49],[30,50,30,54],[29,9,29,15],[29,16,29,22],[29,23,29,26],[29,27,29,30],[29,31,29,36],[32,9,32,15],[32,16,32,22],[35,35,35,54],[37,17,37,24],[37,9,37,16],[43,8,44,15],[47,26,48,36],[32,37,32,41],[32,42,32,45],[32,46,32,49],[32,50,32,54],[32,23,32,26],[32,27,32,30],[32,31,32,36],[36,35,38,54],[46,17,48,23]]}
[]
[null,null,null,null,null,null,null,null,null,null,null,null,null,null,null,null,null,null,null,null,null,null,null,null,null,null,null,null,null,null,null,null,null,null,null,null,null,null,null,null,null,null,null,null,null,null,null,null,null,null,null,null,null,null,null,null,null,null,null,null,null,null,null,null,"(　　　枚のうち　　　枚目)　"]
[]
[]
[null,null,null,{"$f":"\"【令和\"&はじめに!C7&\"年度一般拠出金納付状況】\"","v":"【令和8年度一般拠出金納付状況】"}]
[null,null,null,"基幹番号",null,null,null,null,null,"①",null,null,null,null,null,null,"②"]
[null,null,null,null,null,null,null,null,null,{"$f":"\"令和\"&はじめに!C7&\"年度\"","v":"令和8年度"},null,null,null,null,null,null,"①に係る\n納付済額"]
[null,null,null,null,null,null,null,null,null,"一般拠出金総額"]
[]
[]
[]
[]
[]
[]
[]
[]
[null,null,null,"合計",null,null,null,null,null,"イ",null,null,null,null,null,null,"ロ"]
[null,null,null,null,null,null,null,null,null,{"$f":"SUM(J10:P16)","v":0},null,null,null,null,null,null,{"$f":"SUM(Q10:U16)","v":0}]
[]
[null,null,null,{"$f":"\"【令和\"&はじめに!C7-1&\"年度算定基礎調査等に係る差額一般拠出金納付状況】\"","v":"【令和7年度算定基礎調査等に係る差額一般拠出金納付状況】"}]
[null,null,null,"基幹番号",null,null,null,null,null,{"$f":"\"令和　\"&はじめに!C7-1&\"　年度算定基礎調査等に係る差額一般拠出金\"","v":"令和　7　年度算定基礎調査等に係る差額一般拠出金"},null,null,null,null,null,null,null,null,null,null,null,null,null,"差額一般拠出金に係る",null,null,null,null,null,null,null,"⑦",null,null,null,null,null,"⑧",null,null,null,null,"⑨",null,null,null,"⑩",null,null,null,"⑪"]
[null,null,null,null,null,null,null,null,null,null,null,null,null,null,null,null,null,null,null,null,null,null,null,null,null,null,null,null,null,null,null,null,null,null,null,null,null,"(③－④)に係る\n納付済額",null,null,null,null,"⑤に係る\n納付済額",null,null,null,"⑥に係る\n納付済額"]
[null,null,null,null,null,null,null,null,null,"③　増額分",null,null,null,null,null,null,"④　減額分",null,null,null,null,null,null,"⑤　追徴金",null,null,null,"⑥　延滞金",null,null,null,"(③－④＋⑤＋⑥)",null,null,null,null,null,null,null,null,null,null,null,null,null,null,null,null,null,null,"(⑧＋⑨＋⑩)"]
[]
[]
[]
[]
[]
[]
[]
[]
[null,null,null,"合計",null,null,null,null,null,null,null,null,null,null,null,null,"a",null,null,null,null,null,null,null,null,null,null,null,null,null,null,"b",null,null,null,null,null,null,null,null,null,null,null,null,null,null,null,null,null,null,"c"]
[null,null,null,null,null,null,null,null,null,{"$f":"SUM(J25:P31)","v":0},null,null,null,null,null,null,{"$f":"SUM(Q25:W31)","v":0},null,null,null,null,null,null,{"$f":"SUM(X25:AA31)","v":0},null,null,null,{"$f":"SUM(AB25:AE31)","v":0},null,null,null,{"$f":"SUM(AF25:AK31)","v":0},null,null,null,null,null,{"$f":"SUM(AL25:AP31)","v":0},null,null,null,null,{"$f":"SUM(AQ25:AT31)","v":0},null,null,null,{"$f":"SUM(AU25:AX31)","v":0},null,null,null,{"$f":"SUM(AY25:BC31)","v":0}]
[]
[null,null,null,"合計",null,null,null,null,null,{"$f":"\"令和\"&はじめに!C7&\"年度報奨金交付\"& CHAR(10) &\"要件一般拠出金総額\"","v":"令和8年度報奨金交付\n要件一般拠出金総額"},null,null,null,null,null,null,null,{"$f":"\"令和\"&はじめに!C7&\"年度報奨金交付\"& CHAR(10) &\"要件一般拠出金納付済額\"","v":"令和8年度報奨金交付\n要件一般拠出金納付済額"}]
[null,null,null,null,null,null,null,null,null,null,null,null,null,null,null,null,null,null,null,null,null,null,null,null,null,null,null,null,null,null,null,null,null,null,null,"【事務組合名】"]
[null,null,null,null,null,null,null,null,null," d ( イ ＋ b )",null,null,null,null,null,null,null," e ( ロ ＋ c )",null,null,null,null,null,null,null,null,null,null,null,null,null,null,null,null,null,{"$f":"基本項目入力!B5","v":0}]
[null,null,null,null,null,null,null,null,null,{"$f":"J18+AF33","v":0},null,null,null,null,null,null,null,{"$f":"Q18+AY33","v":0}]
[]
[null,"【総　括】"]
[null,"　（１）　納付率等",null,null,null,null,null,null,null,null,null,null,null,null,null,null,"　（２）　報奨金算定基準日　",null,null,null,null,null,null,null,null,"　（３）　所定額（定率）",null,null,null,null,null,null,null,null,null,null,null,null,null,null,null,null,null,null,"※　５％減額措置による減"]
[null,null,null,null,null,null,null,null,null,null,null,null,null,null,null,null,null,"１","7／10",null,null,null,null,null,null,null,null,null,null,null,null,null,null,null,null,null,null,null,null,null,null,null,null,null,"⑬",null,null,null,null,null,null,null,null,null,"円"]
[null,null,"納付率（ e／d ）",null,null,null,null,null,null,null,null,null,null,null,null,"％",null,null,null,null,null,null,null,null,null,null,"所定額"]
[null,null,null,null,null,null,null,null,{"$f":"R38/J38","v":{"$error":"#DIV/0!"}},null,null,null,null,null,null,null,null,"２","７／１7"]
[]
[null,null,"前年度一般拠出金の\n滞納処分の有無",null,null,null,null,null,"有 ・ 無",null,null,null,null,null,null,null,null,null,"７／１8の場合の理由",null,null,null,null,null,null,null,"⑫"," (ロ－a )×3.5／100",null,null,null,null,null,null,null,null,null,null,null,null,null,null,null,null,"※　交付予定額"]
[null,null,null,null,null,null,null,null,null,null,null,null,null,null,null,null,null,null,null,null,null,null,null,null,null,null,null,null,null,null,null,null,null,null,null,null,null,null,null,null,null,null,null,null,"⑭",null,null,null,null,null,null,null,null,null,"円"]
[null,null,null,null,null,null,null,null,null,null,null,null,null,null,null,null,null,null,null,null,null,null,null,null,null,null,{"$f":"ROUNDDOWN((Q18-Q33)*3.5/100,-2)","v":0}]
[]
[]
[null,null,null,null,"※","報奨金算定基準日が土曜日、日曜日又は国民の祝日に当たるときには、７月１０日又は７月１８日の直後のこれらの日以外の日を報奨金算定基準日とする。"]

{"sheet":"一般拠出個別分","index":7,"n_rows":51,"n_cols":65,"rows_kept":51,"cut":false,"hidden":false,"merged":[[5,3,8,8],[6,16,7,20],[9,9,9,15],[9,16,9,20],[10,9,10,15],[10,16,10,20],[14,9,14,15],[14,16,14,20],[6,9,6,15],[7,9,7,15],[15,9,15,15],[15,16,15,20],[16,3,17,8],[17,9,17,15],[17,16,17,20],[11,9,11,15],[11,16,11,20],[12,9,12,15],[12,16,12,20],[13,9,13,15],[13,16,13,20],[20,3,23,8],[20,9,21,22],[20,23,21,30],[21,37,22,41],[21,42,22,45],[21,46,22,49],[22,9,23,15],[22,16,23,22],[22,23,23,26],[22,27,23,30],[22,31,22,36],[22,50,22,54],[24,9,24,15],[24,16,24,22],[24,23,24,26],[24,27,24,30],[24,31,24,36],[24,37,24,41],[24,42,24,45],[24,46,24,49],[24,50,24,54],[25,9,25,15],[25,16,25,22],[25,23,25,26],[25,27,25,30],[25,31,25,36],[25,37,25,41],[25,42,25,45],[25,46,25,49],[25,50,25,54],[26,42,26,45],[26,46,26,49],[26,50,26,54],[27,9,27,15],[27,16,27,22],[27,23,27,26],[27,27,27,30],[27,31,27,36],[27,37,27,41],[27,42,27,45],[26,9,26,15],[26,16,26,22],[26,23,26,26],[26,27,26,30],[26,31,26,36],[26,37,26,41],[27,46,27,49],[27,50,27,54],[28,9,28,15],[28,16,28,22],[28,23,28,26],[28,27,28,30],[28,31,28,36],[28,37,28,41],[28,42,28,45],[28,46,28,49],[28,50,28,54],[29,9,29,15],[29,16,29,22],[29,23,29,26],[29,27,29,30],[29,31,29,36],[29,37,29,41],[29,42,29,45],[29,46,29,49],[29,50,29,54],[32,23,32,26],[32,27,32,30],[32,31,32,36],[32,37,32,41],[30,9,30,15],[30,16,30,22],[30,23,30,26],[30,27,30,30],[30,31,30,36],[30,37,30,41],[46,26,48,36],[0,40,1,53],[42,2,44,7],[42,26,44,36],[43,8,44,15],[45,2,47,7],[45,8,47,15],[46,17,48,23],[32,42,32,45],[32,46,32,49],[32,50,32,54],[34,3,37,8],[34,9,35,16],[34,17,35,24],[35,35,35,54],[36,35,38,54],[37,9,37,16],[37,17,37,24],[30,42,30,45],[30,46,30,49],[30,50,30,54],[31,3,32,8],[32,9,32,15],[32,16,32,22]]}
[null,null,null,null,null,null,null,null,null,null,null,null,null,null,null,null,null,null,null,null,null,null,null,null,null,null,null,null,null,null,null,null,null,null,null,null,null,null,null,null,"年度途中（個別分）詳細"]
[null,null,null,null,null,null,null,null,null,null,null,null,null,null,null,null,null,null,null,null,null,null,null,null,null,null,null,null,null,null,null,null,null,null,null,null,null,null,null,null,null,null,null,null,null,null,null,null,null,null,null,null,null,null,null,null,null,null,null,null,null,null,null,null,"(　　　枚のうち　　　枚目)　"]
[]
[]
[null,null,null,{"$f":"\"【令和\"&はじめに!C7&\"年度一般拠出金納付状況】\"","v":"【令和8年度一般拠出金納付状況】"}]
[null,null,null,"基幹番号",null,null,null,null,null,"①",null,null,null,null,null,null,"②"]
[null,null,null,null,null,null,null,null,null,{"$f":"一般拠出!J7","v":"令和8年度"},null,null,null,null,null,null,"①に係る\n納付済額"]
[null,null,null,null,null,null,null,null,null,{"$f":"一般拠出!J8","v":"一般拠出金総額"}]
[]
[]
[]
[]
[]
[]
[]
[]
[null,null,null,"合計",null,null,null,null,null,"イ",null,null,null,null,null,null,"ロ"]
[null,null,null,null,null,null,null,null,null,{"$f":"SUM(J10:P16)","v":0},null,null,null,null,null,null,{"$f":"SUM(Q10:U16)","v":0}]
[]
[null,null,null,{"$f":"\"【令和\"&はじめに!C7&\"年度算定基礎調査等に係る差額一般拠出金納付状況】\"","v":"【令和8年度算定基礎調査等に係る差額一般拠出金納付状況】"}]
[null,null,null,"基幹番号",null,null,null,null,null,{"$f":"一般拠出!J21","v":"令和　7　年度算定基礎調査等に係る差額一般拠出金"},null,null,null,null,null,null,null,null,null,null,null,null,null,"差額一般拠出金に係る",null,null,null,null,null,null,null,"⑦",null,null,null,null,null,"⑧",null,null,null,null,"⑨",null,null,null,"⑩",null,null,null,"⑪"]
[null,null,null,null,null,null,null,null,null,null,null,null,null,null,null,null,null,null,null,null,null,null,null,null,null,null,null,null,null,null,null,null,null,null,null,null,null,"(③－④)に係る\n納付済額",null,null,null,null,"⑤に係る\n納付済額",null,null,null,"⑥に係る\n納付済額"]
[null,null,null,null,null,null,null,null,null,"③　増額分",null,null,null,null,null,null,"④　減額分",null,null,null,null,null,null,"⑤　追徴金",null,null,null,"⑥　延滞金",null,null,null,"(③－④＋⑤＋⑥)",null,null,null,null,null,null,null,null,null,null,null,null,null,null,null,null,null,null,"(⑧＋⑨＋⑩)"]
[]
[]
[]
[]
[]
[]
[]
[]
[null,null,null,"合計",null,null,null,null,null,null,null,null,null,null,null,null,"a",null,null,null,null,null,null,null,null,null,null,null,null,null,null,"b",null,null,null,null,null,null,null,null,null,null,null,null,null,null,null,null,null,null,"c"]
[null,null,null,null,null,null,null,null,null,{"$f":"SUM(J25:P31)","v":0},null,null,null,null,null,null,{"$f":"SUM(Q25:W31)","v":0},null,null,null,null,null,null,{"$f":"SUM(X25:AA31)","v":0},null,null,null,{"$f":"SUM(AB25:AE31)","v":0},null,null,null,{"$f":"SUM(AF25:AK31)","v":0},null,null,null,null,null,{"$f":"SUM(AL25:AP31)","v":0},null,null,null,null,{"$f":"SUM(AQ25:AT31)","v":0},null,null,null,{"$f":"SUM(AU25:AX31)","v":0},null,null,null,{"$f":"SUM(AY25:BC31)","v":0}]
[]
[null,null,null,"合計",null,null,null,null,null,{"$f":"\"令和\"&はじめに!C7&\"年度報奨金交付\"& CHAR(10) &\"要件一般拠出金総額\"","v":"令和8年度報奨金交付\n要件一般拠出金総額"},null,null,null,null,null,null,null,{"$f":"\"令和\"&はじめに!C7&\"年度報奨金交付\"& CHAR(10) &\"要件一般拠出金納付済額\"","v":"令和8年度報奨金交付\n要件一般拠出金納付済額"}]
[null,null,null,null,null,null,null,null,null,null,null,null,null,null,null,null,null,null,null,null,null,null,null,null,null,null,null,null,null,null,null,null,null,null,null,"【事務組合名】"]
[null,null,null,null,null,null,null,null,null," d ( イ ＋ b )",null,null,null,null,null,null,null," e ( ロ ＋ c )",null,null,null,null,null,null,null,null,null,null,null,null,null,null,null,null,null,{"$f":"基本項目入力!B5","v":0}]
[null,null,null,null,null,null,null,null,null,{"$f":"J18+AF33","v":0},null,null,null,null,null,null,null,{"$f":"Q18+AY33","v":0}]
[]
[null,"【総　括】"]
[null,"　（１）　納付率等",null,null,null,null,null,null,null,null,null,null,null,null,null,null,"　（２）　報奨金算定基準日　",null,null,null,null,null,null,null,null,"　（３）　所定額（定率）",null,null,null,null,null,null,null,null,null,null,null,null,null,null,null,null,null,null,"※　５％減額措置による減"]
[null,null,null,null,null,null,null,null,null,null,null,null,null,null,null,null,null,"１","７／１０",null,null,null,null,null,null,null,null,null,null,null,null,null,null,null,null,null,null,null,null,null,null,null,null,null,"⑬",null,null,null,null,null,null,null,null,null,"円"]
[null,null,"納付率（ e／d ）",null,null,null,null,null,null,null,null,null,null,null,null,"％",null,null,null,null,null,null,null,null,null,null,"所定額"]
[null,null,null,null,null,null,null,null,{"$f":"R38/J38","v":{"$error":"#DIV/0!"}},null,null,null,null,null,null,null,null,"２","７／１7"]
[]
[null,null,"前年度一般拠出金の\n滞納処分の有無",null,null,null,null,null,"有 ・ 無",null,null,null,null,null,null,null,null,null,"７／１８の場合の理由",null,null,null,null,null,null,null,"⑫"," (ロ－a )×3.5／100",null,null,null,null,null,null,null,null,null,null,null,null,null,null,null,null,"※　交付予定額"]
[null,null,null,null,null,null,null,null,null,null,null,null,null,null,null,null,null,null,null,null,null,null,null,null,null,null,{"$f":"ROUNDDOWN((Q18-Q33)*3.5/100,-2)","v":0},null,null,null,null,null,null,null,null,null,null,null,null,null,null,null,null,null,"⑭",null,null,null,null,null,null,null,null,null,"円"]
[]
[]
[]
[null,null,null,null,"※","報奨金算定基準日が土曜日、日曜日又は国民の祝日に当たるときには、７月１０日又は７月１８日の直後のこれらの日以外の日を報奨金算定基準日とする。"]

{"sheet":"1電子","index":8,"n_rows":40,"n_cols":46,"rows_kept":40,"cut":false,"hidden":false,"merged":[[1,1,1,5],[7,37,7,38],[7,40,7,41],[7,43,7,44],[10,1,11,4],[10,10,11,15],[10,16,11,29],[10,30,11,35],[10,36,11,46],[11,5,11,8],[20,38,26,38],[21,22,22,27],[21,32,22,35],[13,10,14,15],[13,16,14,29],[13,30,14,35],[13,36,14,46],[15,25,15,29],[16,10,17,15],[16,16,17,29],[16,30,17,35],[16,36,17,46],[23,25,24,27],[21,39,23,46],[25,39,26,46],[21,28,22,31],[23,1,26,6],[23,7,24,18],[23,29,24,29],[23,30,24,35],[23,36,24,37],[25,7,25,12],[25,13,25,18],[25,25,26,37],[26,7,26,9],[26,10,26,12],[20,21,26,21],[26,13,26,15],[26,16,26,18],[21,36,22,37],[27,7,27,9],[27,10,27,12],[27,13,27,15],[27,16,27,18],[28,7,28,9],[28,10,28,12],[28,13,28,15],[28,16,28,18],[29,7,29,9],[29,10,29,12],[29,13,29,15],[29,16,29,18],[30,7,30,9],[30,10,30,12],[30,13,30,15],[30,16,30,18],[31,36,32,46],[32,7,32,9],[32,10,32,12],[32,13,32,15],[32,16,32,18],[31,7,31,9],[31,10,31,12],[31,13,31,15],[31,16,31,18],[31,22,32,34],[33,45,34,46],[34,7,34,9],[34,10,34,12],[34,13,34,15],[34,16,34,18],[34,25,34,33],[34,35,34,44],[36,7,36,9],[36,10,36,12],[36,13,36,15],[36,16,36,18],[33,7,33,9],[33,10,33,12],[33,13,33,15],[33,16,33,18],[35,7,35,9],[35,10,35,12],[35,13,35,15],[35,16,35,18],[37,7,37,9],[37,10,37,12],[37,13,37,15],[37,16,37,18],[38,1,39,6],[39,7,39,9],[39,10,39,12],[39,13,39,15],[39,16,39,18]]}
[]
[]
[null,null,null,null,null,null,null,null,null,null,null,null,null,null,null,null,null,null,null,null,null,null,null,null,null,null,null,null,null,null,null,null,null,null,null,null,null,"（",null,"枚のうち",null,null,null,null,"枚目）"]
[null,"様式第１号"]
[null,null,null,null,null,null,null,null,{"$f":"\"令和 \"&はじめに!C7&\" 年度労働保険事務組合報奨金（電子化分）交付申請書\"","v":"令和 8 年度労働保険事務組合報奨金（電子化分）交付申請書"}]
[]
[]
[null,"下記のとおり報奨金（電子化分）の交付を請求します。",null,null,null,null,null,null,null,null,null,null,null,null,null,null,null,null,null,null,null,null,null,null,null,null,null,null,null,null,null,null,null,null,null,"令和",null,null,null,"年",null,null,"月",null,null,"日"]
[]
[]
[null,{"$f":"はじめに!C9","v":"愛知"},null,null,null,null,null,null,null,null,"事務組合の\n名称",null,null,null,null,null,{"$f":"基本項目入力!B5","v":0},null,null,null,null,null,null,null,null,null,null,null,null,null,"\n電話番号",null,null,null,null,null,{"$f":"基本項目入力!B8","v":0}]
[null,null,null,null,null,"労働局長　殿"]
[]
[null,null,null,null,null,null,null,null,null,null,"\n所在地",null,null,null,null,null,{"$f":"基本項目入力!B7","v":0},null,null,null,null,null,null,null,null,null,null,null,null,null,"\n郵便番号",null,null,null,null,null,{"$f":"基本項目入力!B6","v":0}]
[]
[null,null,null,null,null,null,null,null,null,null,null,null,null,null,null,null,null,null,null,null,null,null,null,null,null,"記名又は署名"]
[null,null,null,null,null,null,null,null,null,null,"\n代表者氏名",null,null,null,null,null,{"$f":"基本項目入力!B9","v":0},null,null,null,null,null,null,null,null,null,null,null,null,null,"\n作成者氏名",null,null,null,null,null,{"$f":"基本項目入力!B10","v":0}]
[]
[]
[null,null,null,null,null,null,null,null,null,null,null,null,null,null,null,null,null,null,null,null,null,null,"(振込を希望する金融機関)"]
[null,null,null,null,null,null,null,null,null,null,null,null,null,null,null,null,null,null,null,null,null,"金融機関","（名称）",null,null,null,null,null,null,null,null,null,null,null,null,null,null,null,"ゆうちょ銀行","（名称）"]
[null,null,null,null,null,null,null,null,null,null,null,null,null,null,null,null,null,null,null,null,null,null,{"$f":"IF(基本項目入力!C14=\"ゆうちょ銀行\",\"\",基本項目入力!B14)","v":0},null,null,null,null,null,{"$f":"基本項目入力!C14","v":0},null,null,null,{"$f":"基本項目入力!B16","v":0},null,null,null,"店",null,null,{"$f":"'1'!BF7","v":""}]
[]
[null,"基幹番号",null,null,null,null,null,"規模・保険関係別委託事業数",null,null,null,null,null,null,null,null,null,null,null,null,null,null,"（口座）",null,null,{"$f":"基本項目入力!C17","v":0},null,null,null,"第",{"$f":"'1'!AX11","v":0},null,null,null,null,null,"号"]
[null,null,null,null,null,null,null,null,null,null,null,null,null,null,null,null,null,null,null,null,null,null,null,null,null,null,null,null,null,null,null,null,null,null,null,null,null,null,null,"（所在地）"]
[null,null,null,null,null,null,null,"甲",null,null,null,null,null,"乙",null,null,null,null,null,null,null,null,"（名義人）",null,null,{"$f":"'1'!AR14","v":0},null,null,null,null,null,null,null,null,null,null,null,null,null,{"$f":"'1'!BF12","v":""}]
[null,null,null,null,null,null,null,"Ａ",null,null,"Ｂ",null,null,"Ａ",null,null,"Ｂ"]
[]
[]
[]
[null,null,null,null,null,null,null,null,null,null,null,null,null,null,null,null,null,null,null,null,null,"【総括】"]
[null,null,null,null,null,null,null,null,null,null,null,null,null,null,null,null,null,null,null,null,null,"⑤","委託事業数",null,null,null,null,null,null,null,null,null,null,null,null,"⑥","所　定　額　　"]
[]
[null,null,null,null,null,null,null,null,null,null,null,null,null,null,null,null,null,null,null,null,null,"①＋②＋③＋④",null,null,null,null,null,null,null,null,null,null,null,null,null,"⑤×800円",null,null,null,null,null,null,null,null,null,"円"]
[null,null,null,null,null,null,null,null,null,null,null,null,null,null,null,null,null,null,null,null,null,null,null,null,null,{"$f":"SUM(H40:S40)","v":0},null,null,null,null,null,null,null,null,null,{"$f":"Z35*800","v":0}]
[]
[]
[]
[null,"小　　計",null,null,null,null,null,"①",null,null,"②",null,null,"③",null,null,"④"]
[null,null,null,null,null,null,null,{"$f":"SUM(H28:J38)","v":0},null,null,{"$f":"SUM(K28:M38)","v":0},null,null,{"$f":"SUM(N28:P38)","v":0},null,null,{"$f":"SUM(Q28:S38)","v":0}]

{"sheet":"1-2","index":9,"n_rows":38,"n_cols":67,"rows_kept":38,"cut":false,"hidden":false,"merged":[[25,31,27,35],[21,15,21,18],[21,19,21,22],[21,23,21,26],[21,32,21,34],[21,48,21,51],[25,43,25,62],[26,43,28,62],[19,60,19,63],[19,23,19,26],[19,27,19,30],[19,33,19,34],[19,36,19,39],[19,40,19,43],[21,52,21,55],[21,56,21,59],[21,60,21,63],[19,2,19,7],[19,8,19,10],[19,11,19,14],[19,15,19,18],[19,19,19,22],[18,44,18,47],[18,48,18,51],[18,52,18,55],[18,56,18,59],[19,44,19,47],[19,48,19,51],[19,52,19,55],[19,56,19,59],[18,60,18,63],[18,23,18,26],[18,27,18,30],[18,33,18,34],[18,36,18,39],[18,40,18,43],[18,2,18,7],[18,8,18,10],[18,11,18,14],[18,15,18,18],[18,19,18,22],[16,60,16,63],[17,2,17,7],[17,8,17,10],[17,11,17,14],[17,15,17,18],[17,19,17,22],[17,23,17,26],[17,27,17,30],[17,33,17,34],[17,36,17,39],[17,40,17,43],[17,44,17,47],[17,48,17,51],[17,52,17,55],[17,56,17,59],[17,60,17,63],[16,2,16,7],[16,8,16,10],[16,11,16,14],[16,15,16,18],[16,19,16,22],[16,23,16,26],[16,27,16,30],[16,33,16,34],[16,36,16,39],[13,33,13,34],[14,52,14,55],[14,56,14,59],[16,40,16,43],[16,44,16,47],[16,48,16,51],[16,52,16,55],[16,56,16,59],[14,60,14,63],[15,2,15,7],[15,8,15,10],[15,11,15,14],[15,15,15,18],[15,19,15,22],[15,23,15,26],[15,27,15,30],[15,33,15,34],[15,36,15,39],[15,40,15,43],[15,44,15,47],[15,48,15,51],[15,52,15,55],[15,56,15,59],[15,60,15,63],[6,23,11,26],[13,48,13,51],[13,52,13,55],[13,56,13,59],[13,60,13,63],[14,2,14,7],[14,8,14,10],[14,11,14,14],[14,15,14,18],[14,19,14,22],[14,23,14,26],[14,27,14,30],[14,33,14,34],[14,36,14,39],[14,40,14,43],[14,44,14,47],[14,48,14,51],[13,2,13,7],[13,8,13,10],[13,11,13,14],[13,15,13,18],[13,19,13,22],[13,23,13,26],[13,27,13,30],[6,56,11,59],[6,60,11,63],[12,2,12,7],[12,8,12,10],[20,2,21,10],[20,11,21,14],[20,27,21,30],[20,36,21,39],[20,40,21,43],[20,44,21,47],[6,31,11,35],[6,36,11,39],[6,40,11,43],[6,44,11,47],[6,48,11,51],[6,52,11,55],[13,44,13,47],[13,40,13,43],[13,36,13,39],[6,27,11,30],[6,2,7,10],[6,11,11,14],[6,15,11,18],[6,19,11,22]]}
[]
[null,null,null,null,null,null,null,null,null,null,null,null,null,null,null,null,null,null,null,null,null,null,null,null,null,null,null,null,null,null,null,null,null,null,null,null,null,null,null,null,null,null,null,null,null,null,null,null,null,null,null,null,null,null,null,null,null,null,null,null,null,null,null,null,null,null,"様式第１号の２"]
[]
[]
[]
[null,null,"㉖",null,null,null,null,null,null,null,null,"㉗",null,null,null,"㉘",null,null,null,"㉙",null,null,null,"㉚",null,null,null,"㉛",null,null,null,"㉜",null,null,null,null,"㉝",null,null,null,"㉞",null,null,null,"㉟",null,null,null,"㊱",null,null,null,"㊲",null,null,null,"㊳",null,null,null,"㊴"]
[null,null,"口座振替納付書の労働保険番号",null,null,null,null,null,null,null,null,"第１期分等労働保険料の額",null,null,null,"㉗の労働保険料として口座振替納付日までに委託事業主から交付された額",null,null,null,"口座振替納付済額（現に口座振替納付した㉗の額）",null,null,null,"㉗のうち口座振替納付後１週間以内に納付された額",null,null,null,"㉘のうち算定対象事業※の前年度確定保険料不足額納付済額",null,null,null,"ル≦オの範囲内で口座振替納付されたものとする労働保険番号（該当するものに○を付し、（　）に㉗の額を記入）",null,null,null,null,"㉛のうち口座振替納付されたものとするもの（㉜で○印を付したものについて㉛の額を転記）",null,null,null,"算定対象事業※の前年度概算保険料等納付済額（確定保険料の額を超えるときは、確定保険料の額）",null,null,null,"㉝+㉞（申請書の⑤の額）",null,null,null,"当年度一般拠出金の額",null,null,null,"㊱の一般拠出金として口座振替納付日までに委託事業主から交付された額",null,null,null,"口座振替納付済額（現に口座振替納付した㊱の額）",null,null,null,"㊱のうち口座振替納付後１週間以内に納付された額"]
[]
[]
[]
[]
[]
[null,null,"基幹番号",null,null,null,null,null,"枝番号"]
[null,null,null,null,null,null,null,null,null,null,null,null,null,null,null,null,null,null,null,null,null,null,null,null,null,null,null,null,null,null,null,null,"（",null,null,"）"]
[null,null,null,null,null,null,null,null,null,null,null,null,null,null,null,null,null,null,null,null,null,null,null,null,null,null,null,null,null,null,null,null,"（",null,null,"）"]
[null,null,null,null,null,null,null,null,null,null,null,null,null,null,null,null,null,null,null,null,null,null,null,null,null,null,null,null,null,null,null,null,"（",null,null,"）"]
[null,null,null,null,null,null,null,null,null,null,null,null,null,null,null,null,null,null,null,null,null,null,null,null,null,null,null,null,null,null,null,null,"（",null,null,"）"]
[null,null,null,null,null,null,null,null,null,null,null,null,null,null,null,null,null,null,null,null,null,null,null,null,null,null,null,null,null,null,null,null,"（",null,null,"）"]
[null,null,null,null,null,null,null,null,null,null,null,null,null,null,null,null,null,null,null,null,null,null,null,null,null,null,null,null,null,null,null,null,"（",null,null,"）"]
[null,null,null,null,null,null,null,null,null,null,null,null,null,null,null,null,null,null,null,null,null,null,null,null,null,null,null,null,null,null,null,null,"（",null,null,"）"]
[null,null,"合　　　　計",null,null,null,null,null,null,null,null,null,null,null,null,"チ",null,null,null,"リ",null,null,null,"ヌ",null,null,null,null,null,null,null,"ル"]
[null,null,null,null,null,null,null,null,null,null,null,null,null,null,null,{"$f":"SUM(P14:S20)","v":0},null,null,null,{"$f":"SUM(T14:W20)","v":0},null,null,null,{"$f":"SUM(X14:AA20)","v":0},null,null,null,null,null,null,null,"（",{"$f":"SUM(AH14:AI20)","v":0},null,null,"）",null,null,null,null,null,null,null,null,null,null,null,null,{"$f":"SUM(AW14:AZ20)","v":0},null,null,null,{"$f":"SUM(BA14:BD20)","v":0},null,null,null,{"$f":"SUM(BE14:BH20)","v":0},null,null,null,{"$f":"SUM(BI14:BL20)","v":0}]
[null,null,null,null,null,null,null,null,null,null,null,null,null,null,null,null,null,null,null,null,null,null,null,null,null,null,null,null,null,null,null,"オ"]
[null,null,null,null,null,null,null,null,null,null,null,null,null,null,null,null,null,null,null,null,null,null,null,null,null,null,null,null,null,null,null,null,null,null,null,"チの額又は（リ＋ヌ）"]
[null,null,null,null,null,null,null,null,null,null,null,null,null,null,null,null,null,null,null,null,null,null,null,null,null,null,null,null,null,null,null,null,null,null,null,"の額のうち低いほうの額"]
[null,null,null,null,null,null,null,null,null,null,null,null,null,null,null,null,null,null,null,null,null,null,null,null,null,null,null,null,null,null,null,{"$f":"IF(P22<(T22+X22),P22,(T22+X22))","v":0},null,null,null,null,null,null,null,null,null,null,null,"【事務組合名】"]
[null,null,null,null,null,null,null,null,null,null,null,null,null,null,null,null,null,null,null,null,null,null,null,null,null,null,null,null,null,null,null,null,null,null,null,null,null,null,null,null,null,null,null,{"$f":"基本項目入力!B5","v":0}]
[]
[]
[null,null,"※「算定対象事業」とは、報奨金の申請に係る15人以下事業をいう。"]
[]
[null,null,"注１",null,"　㉖は、基幹番号の若い方から順に記入すること。（納付書に枝番号があるものは、基幹番号が同一のもので枝番号のないものの後に続けて記入する。）"]
[null,null,"注２",null,"　㉛は、口座振替納付日までに交付を受けていた算定対象事業の前年度確定保険料不足額で、口座振替納付したものを含め、口座振替納付日から起算して７日を経過した日までに納付した額を記入すること。"]
[null,null,null,null,"　また、口座振替納付日までに事務組合へ納付されなかった算定対象事業の前年度確定保険料不足額の一覧表（未交付の算定対象事業場名（労働保険番号を付記）及びその未交付の前年度確定保険料不足額を記載した一覧"]
[null,null,null,null,"表）を添付すること。"]
[null,null,"注３",null,"　㉜については、ルの額がオの額を超えない範囲内で、有利な順序で口座振替納付がなされたものとするよう事務組合が選択することができること。"]
[null,null,"注４",null,"　㉞には、報奨金算定基準日までに納付した算定対象事業の前年度概算保険料、増加概算保険料及び保険料率の引上げによる追加徴収保険料の額（その額が前年度確定保険料の額を超えるときは、前年度確定保険料の額）"]
[null,null,null,null,"の合計額を記入すること。"]

{"sheet":"1-3","index":10,"n_rows":37,"n_cols":65,"rows_kept":37,"cut":false,"hidden":false,"merged":[[23,21,24,25],[23,16,24,20],[23,11,24,15],[23,59,24,63],[23,54,24,58],[23,49,24,53],[23,44,24,48],[23,26,24,28],[21,54,21,58],[21,59,21,63],[22,44,22,48],[22,49,22,53],[22,54,22,58],[22,59,22,63],[21,26,21,28],[21,29,21,33],[21,34,21,38],[21,39,21,43],[21,44,21,48],[22,2,22,7],[22,8,22,10],[22,11,22,15],[22,16,22,20],[22,21,22,25],[22,26,22,28],[22,29,22,33],[22,34,22,38],[22,39,22,43],[21,2,21,7],[21,8,21,10],[21,11,21,15],[21,16,21,20],[21,21,21,25],[19,54,19,58],[19,59,19,63],[20,2,20,7],[20,8,20,10],[20,11,20,15],[20,16,20,20],[20,21,20,25],[20,26,20,28],[20,29,20,33],[20,34,20,38],[20,39,20,43],[20,44,20,48],[20,49,20,53],[20,54,20,58],[20,59,20,63],[19,21,19,25],[19,26,19,28],[19,29,19,33],[19,34,19,38],[19,39,19,43],[17,54,17,58],[17,59,17,63],[18,2,18,7],[18,8,18,10],[18,11,18,15],[18,16,18,20],[18,21,18,25],[18,26,18,28],[18,29,18,33],[18,34,18,38],[18,39,18,43],[18,44,18,48],[18,49,18,53],[18,54,18,58],[18,59,18,63],[19,8,19,10],[19,11,19,15],[19,16,19,20],[26,44,26,63],[27,44,29,63],[16,2,16,7],[16,8,16,10],[16,11,16,15],[16,16,16,20],[16,21,16,25],[16,26,16,28],[16,39,16,43],[16,34,16,38],[16,29,16,33],[16,59,16,63],[16,54,16,58],[16,49,16,53],[23,29,24,33],[23,34,24,38],[17,2,17,7],[17,8,17,10],[17,11,17,15],[17,16,17,20],[17,21,17,25],[17,26,17,28],[17,29,17,33],[19,2,19,7],[5,54,14,58],[5,59,14,63],[5,2,6,10],[5,11,14,15],[5,16,14,20],[5,21,14,25],[5,26,14,28],[5,29,14,33],[23,39,24,43],[5,34,14,38],[5,39,14,43],[5,44,14,48],[5,49,14,53],[16,44,16,48],[17,34,17,38],[17,39,17,43],[17,44,17,48],[17,49,17,53],[19,44,19,48],[19,49,19,53],[21,49,21,53],[15,2,15,7],[15,8,15,10],[23,2,24,10]]}
[]
[null,null,null,null,null,null,null,null,null,null,null,null,null,null,null,null,null,null,null,null,null,null,null,null,null,null,null,null,null,null,null,null,null,null,null,null,null,null,null,null,null,null,null,null,null,null,null,null,null,null,null,null,null,null,null,null,null,null,null,null,null,null,null,null,"様式第１号の３"]
[]
[]
[null,null,"㉖",null,null,null,null,null,null,null,null,"㉗",null,null,null,null,"㉘",null,null,null,null,"㉙",null,null,null,null,"㊵",null,null,"㊶",null,null,null,null,"㉞",null,null,null,null,"㉟",null,null,null,null,"㊱",null,null,null,null,"㊲",null,null,null,null,"㊳",null,null,null,null,"㊴"]
[null,null,"口座振替納付書の労働保険番号",null,null,null,null,null,null,null,null,"第１期分等労働保険料の額",null,null,null,null,"㉗の労働保険料として口座振替納付日までに委託事業主から交付された額",null,null,null,null,"口座振替納付済額（現に口座振替納付した㉗の額。口座振替納付されなかったものは、「振替不能」と記入）",null,null,null,null,"振替不能がやむを得ず生じた口座振替納付書（該当するものに○印を付す。）",null,null,"口座振替納付日から起算して７日を経過した日までに納付した算定対象事業※の前年度確定保険料不足額納付済額（㉚に「振替不能」と記したもので㊵に○を付さなかったものは「0」とする。）",null,null,null,null,"算定対象事業※の前年度概算保険料等納付済額（確定保険料の額を超えるときは、確定保険料の額）",null,null,null,null,"㊶+㉞（申請書の⑤の額）",null,null,null,null,"当年度一般拠出金の額",null,null,null,null,"㊱の一般拠出金として口座振替納付日までに委託事業主から交付された額",null,null,null,null,"口座振替納付済額（現に口座振替納付した㊱の額）",null,null,null,null,"㊱のうち口座振替納付後１週間以内に納付された額"]
[]
[]
[]
[]
[]
[]
[]
[]
[]
[null,null,"基幹番号",null,null,null,null,null,"枝番号"]
[]
[]
[]
[]
[]
[]
[]
[null,null,"合　　　　計",null,null,null,null,null,null,null,null,{"$f":"SUM(L17:P23)","v":0},null,null,null,null,{"$f":"SUM(Q17:U23)","v":0},null,null,null,null,{"$f":"SUM(V17:Z23)","v":0},null,null,null,null,{"$f":"SUM(AA17:AC23)","v":0},null,null,null,null,null,null,null,null,null,null,null,null,null,null,null,null,null,{"$f":"SUM(AS17:AW23)","v":0},null,null,null,null,{"$f":"SUM(AX17:BB23)","v":0},null,null,null,null,{"$f":"SUM(BC17:BG23)","v":0},null,null,null,null,{"$f":"SUM(BH17:BL23)","v":0}]
[]
[]
[null,null,null,null,null,null,null,null,null,null,null,null,null,null,null,null,null,null,null,null,null,null,null,null,null,null,null,null,null,null,null,null,null,null,null,null,null,null,null,null,null,null,null,null,"【事務組合名】"]
[null,null,"※「算定対象事業」とは、報奨金の申請に係る15人以下事業をいう。",null,null,null,null,null,null,null,null,null,null,null,null,null,null,null,null,null,null,null,null,null,null,null,null,null,null,null,null,null,null,null,null,null,null,null,null,null,null,null,null,null,{"$f":"基本項目入力!B5","v":0}]
[]
[null,null,null,"注１","　㉖は、基幹番号の若い方から順に記入すること。（納付書に枝番号があるものは、基幹番号が同一のもので枝番号のないものの後に続けて記入する。）"]
[null,null,null,"注２","　㊵の欄に○印を付したもの（㉗に記入した額と㉘に記入した額が同額であるものを除く。）に関しては、振替不能となった委託事業主からの労働保険料の未交付に関し、委託事業主に対して口座振替納付日までに２度以"]
[null,null,null,null,"上にわたり交付を請求したこと及び事務組合がその請求等に当たって確認した当該委託事業主から同日までに労働保険料の交付を受けられないこととなった事情を証する書面を添付すること。"]
[null,null,null,"注３","　㊶欄には、算定対象事業の前年度確定保険料不足額で、口座振替納付によったものを含め、口座振替納付日から起算して７日を経過した日までに納付したものの合計額を記入すること。"]
[null,null,null,null,"　なお、口座振替納付日から起算して７日を経過した日の翌日において納付していない当該算定対象事業の前年度確定保険料不足額の一覧表（未納付の算定対象事業場名（労働保険番号を付記）及びその未納付の前年度"]
[null,null,null,null,"確定保険料額を記載した一覧表）を添付すること。"]
[null,null,null,"注４","　㉞欄には、報奨金算定基準日までに納付した算定対象事業の前年度概算保険料、増加概算保険料及び保険料率の引上げによる追加徴収保険料の額（その額が前年度確定保険料の額を超えるときは、前年度確定保険料の額）"]
[null,null,null,null,"の合計額を記入すること。"]

{"sheet":"別紙1-1","index":11,"n_rows":33,"n_cols":5,"rows_kept":33,"cut":false,"hidden":false,"merged":[[14,1,14,4],[0,0,0,5],[1,0,1,5],[2,4,2,5],[3,1,3,4],[4,0,4,5],[15,0,15,4],[16,0,16,5],[19,4,20,4],[30,1,30,4],[31,1,31,2]]}
["交付申請時に提出する証明書の様式（事務組合が直接受け取る場合）"]
[{"$f":"\"（ 令和\"&はじめに!C7-1&\"年度交付分に係る受入及び支出）\"","v":"（ 令和7年度交付分に係る受入及び支出）"}]
[]
[null,"受入証明書"]
["  令和    年　　月　　日に交付を受けた報奨金　　　　　　　　　　　　　　円の支出の振替については、下記のとおりです。"]
[]
[null,"収　入　事　項","受入金額","備考"]
[]
[]
[]
[]
[null,"計"]
[]
[]
[null,"支出証明書(振替）"]
["  報奨金　　　　　　　　　　　　　円の支出（振替）については、下記のとおりです。\n  なお、振替期日は各備考欄に記載しております。"]
[]
[null,"支　出　事　項","支出総額","報奨金支出額","備考"]
[]
[]
[]
[]
[]
[]
[]
[]
[]
[]
[]
[null,"計"]
[null,"当該受入証明書、支出証明書については、正当なものであることを証します。"]
[null,"　　　　年　　　　月　　　　日"]
[null,null,"証明者"]

{"sheet":"別紙1-2","index":12,"n_rows":32,"n_cols":5,"rows_kept":32,"cut":false,"hidden":false,"merged":[[14,1,14,4],[15,0,15,5],[19,4,20,4],[29,1,29,4],[0,0,0,5],[1,0,1,5],[3,1,3,4],[4,0,4,5],[5,1,5,2],[5,3,5,4]]}
["交付申請時に提出する証明書の様式（母体団体が受け取る場合）"]
[{"$f":"\"（ 令和\"&はじめに!C7-1&\"年度交付分に係る受入及び支出）\"","v":"（ 令和7年度交付分に係る受入及び支出）"}]
[]
[null,"受入証明書（繰入）"]
["  令和   年　　月　　日に交付を受けた報奨金　　　　　　　　　　　　　円の受入及び繰入については、下記のとおりです。\n  なお、繰入期日は令和　　年　　月　　日です。"]
[null,"受　　　入　",null,"繰　　　入　"]
[null,"収　入　事　項","受入金額","収　入　事　項","繰入金額"]
[]
[]
[]
[]
[]
[null,"計"]
[]
[null,"支出証明書（振替）"]
["  令和    年　　月　　日に繰入れ済の報奨金　　　　　　　　　　　　　円の支出の振り替えについては、下記のとおりです。"]
[]
[null,"支　出　事　項","支出総額","報奨金支出額","備考"]
[]
[]
[]
[]
[]
[]
[]
[]
[]
[]
[null,"計"]
[null,"  当該受入証明書（繰入）・支出証明書（振替）については、正当なものであることを証します。"]
[null,"　　　年　 　 月 　　 日","証明者"]
[null,"　　　年　 　 月 　　 日","証明者"]

{"sheet":"別紙1-3","index":13,"n_rows":32,"n_cols":4,"rows_kept":32,"cut":false,"hidden":false,"merged":[[0,1,0,3],[30,1,30,3]]}
[null,{"$f":"\"「令和\"&はじめに!C7&\"年度交付分に係る支出予定内容」の様式\"","v":"「令和8年度交付分に係る支出予定内容」の様式"}]
[]
[null,"支　出　事　項","令和5年度\n報奨金支出予定額","備　　考"]
[]
[]
[]
[]
[]
[]
[]
[]
[]
[]
[]
[]
[]
[]
[]
[]
[]
[]
[]
[]
[]
[]
[]
[]
[]
[]
[null,"計"]
[null,"上記支出予定内容については、以上のものであることを証します。"]
[null,"令和　　 年 　　月 　　日","証明者"]

{"sheet":"1電子例","index":14,"n_rows":40,"n_cols":46,"rows_kept":40,"cut":false,"hidden":false,"merged":[[1,1,1,5],[7,37,7,38],[7,40,7,41],[7,43,7,44],[10,1,11,4],[10,10,11,15],[10,16,11,29],[10,30,11,35],[10,36,11,46],[11,5,11,8],[20,38,26,38],[21,22,22,27],[21,32,22,35],[13,10,14,15],[13,16,14,29],[13,30,14,35],[13,36,14,46],[15,25,15,29],[16,10,17,15],[16,16,17,29],[16,30,17,35],[16,36,17,46],[23,1,26,6],[23,7,24,18],[23,29,24,29],[23,30,24,35],[23,36,24,37],[25,7,25,12],[25,13,25,18],[25,25,26,37],[26,7,26,9],[26,10,26,12],[20,21,26,21],[20,28,22,31],[20,36,22,37],[26,13,26,15],[26,16,26,18],[27,7,27,9],[27,10,27,12],[27,13,27,15],[27,16,27,18],[28,7,28,9],[28,10,28,12],[28,13,28,15],[28,16,28,18],[29,7,29,9],[29,10,29,12],[29,13,29,15],[29,16,29,18],[30,7,30,9],[30,10,30,12],[30,13,30,15],[30,16,30,18],[31,36,32,46],[32,7,32,9],[32,10,32,12],[32,13,32,15],[32,16,32,18],[31,7,31,9],[31,10,31,12],[31,13,31,15],[31,16,31,18],[31,22,32,34],[33,45,34,46],[34,7,34,9],[34,10,34,12],[34,13,34,15],[34,16,34,18],[34,25,34,33],[34,37,34,43],[36,7,36,9],[36,10,36,12],[36,13,36,15],[36,16,36,18],[33,7,33,9],[33,10,33,12],[33,13,33,15],[33,16,33,18],[35,7,35,9],[35,10,35,12],[35,13,35,15],[35,16,35,18],[37,7,37,9],[37,10,37,12],[37,13,37,15],[37,16,37,18],[38,1,39,6],[39,7,39,9],[39,10,39,12],[39,13,39,15],[39,16,39,18]]}
[]
[null,"作成例"]
[null,null,null,null,null,null,null,null,null,null,null,null,null,null,null,null,null,null,null,null,null,null,null,null,null,null,null,null,null,null,null,null,null,null,null,null,null,"（",1,"枚のうち",null,null,null,1,"枚目）"]
[null,"様式第１号"]
[null,null,null,null,null,null,null,null,"令和○年度労働保険事務組合報奨金（電子化分）交付申請書"]
[]
[]
[null,"下記のとおり報奨金（電子化分）の交付を請求します。",null,null,null,null,null,null,null,null,null,null,null,null,null,null,null,null,null,null,null,null,null,null,null,null,null,null,null,null,null,null,null,null,null,"令和",null,"○",null,"年","○",null,"月","○",null,"日"]
[]
[]
[null,{"$f":"はじめに!C9","v":"愛知"},null,null,null,null,null,null,null,null,"事務組合の\n名称",null,null,null,null,null,"　○○××会",null,null,null,null,null,null,null,null,null,null,null,null,null,"\n電話番号",null,null,null,null,null,"０５９－２２６－ＸＸＸＸ"]
[null,null,null,null,null,"労働局長　殿"]
[]
[null,null,null,null,null,null,null,null,null,null,"\n所在地",null,null,null,null,null,"名古屋市伏見X－X－X",null,null,null,null,null,null,null,null,null,null,null,null,null,"\n郵便番号",null,null,null,null,null,"５１４－８５２４"]
[]
[null,null,null,null,null,null,null,null,null,null,null,null,null,null,null,null,null,null,null,null,null,null,null,null,null,"記名又は署名"]
[null,null,null,null,null,null,null,null,null,null,"\n代表者氏名",null,null,null,null,null,"　会長　○○　○○",null,null,null,null,null,null,null,null,null,null,null,null,null,"\n作成者氏名",null,null,null,null,null,"　○○　○○"]
[]
[]
[null,null,null,null,null,null,null,null,null,null,null,null,null,null,null,null,null,null,null,null,null,null,"(振込を希望する金融機関)"]
[null,null,null,null,null,null,null,null,null,null,null,null,null,null,null,null,null,null,null,null,null,"金融機関","（名称）",null,null,null,null,null,"銀　　　行\n信用金庫\n信用組合\n労働金庫",null,null,null,null,null,null,null,"店",null,"ゆうちょ銀行","（名称）"]
[null,null,null,null,null,null,null,null,null,null,null,null,null,null,null,null,null,null,null,null,null,null,"○○○○",null,null,null,null,null,null,null,null,null,"○○支"]
[]
[null,"基幹番号",null,null,null,null,null,"規模・保険関係別委託事業数",null,null,null,null,null,null,null,null,null,null,null,null,null,null,"（口座）",null,null,"当座",null,null,null,"第","３０ＸＸＸＸＸ",null,null,null,null,null,"号"]
[null,null,null,null,null,null,null,null,null,null,null,null,null,null,null,null,null,null,null,null,null,null,null,null,null,"普通",null,null,null,null,null,null,null,null,null,null,null,null,null,"（所在地）"]
[null,null,null,null,null,null,null,"甲",null,null,null,null,null,"乙",null,null,null,null,null,null,null,null,"（名義人）",null,null,"労働保険事務組合\n○○××会"]
[null,null,null,null,null,null,null,"Ａ",null,null,"Ｂ",null,null,"Ａ",null,null,"Ｂ"]
[null,9,"△","△","△","△",0,438,null,null,0,null,null,207,null,null,0]
[null,9,"△","△","△","△",2,0,null,null,52,null,null,0,null,null,36]
[null,9,"△","△","△","△",5,0,null,null,19,null,null,0,null,null,26]
[null,9,"△","△","△","△",6,0,null,null,18,null,null,0,null,null,8,null,null,null,null,"【総括】"]
[null,null,null,null,null,null,null,null,null,null,null,null,null,null,null,null,null,null,null,null,null,"⑤","委託事業数",null,null,null,null,null,null,null,null,null,null,null,null,"⑥","所　定　額　　"]
[]
[null,null,null,null,null,null,null,null,null,null,null,null,null,null,null,null,null,null,null,null,null,"①＋②＋③＋④",null,null,null,null,null,null,null,null,null,null,null,null,null,"⑤×800円",null,null,null,null,null,null,null,null,null,"円"]
[null,null,null,null,null,null,null,null,null,null,null,null,null,null,null,null,null,null,null,null,null,null,null,null,null,{"$f":"SUM(H40:S40)","v":804},null,null,null,null,null,null,null,null,null,null,null,{"$f":"Z35*800","v":643200}]
[]
[]
[]
[null,"小　　計",null,null,null,null,null,"①",null,null,"②",null,null,"③",null,null,"④"]
[null,null,null,null,null,null,null,{"$f":"SUM(H28:J38)","v":438},null,null,{"$f":"SUM(K28:M38)","v":89},null,null,{"$f":"SUM(N28:P38)","v":207},null,null,{"$f":"SUM(Q28:S38)","v":70}]

{"sheet":"別紙1-1例","index":15,"n_rows":33,"n_cols":5,"rows_kept":33,"cut":false,"hidden":false,"merged":[[19,4,20,4],[31,1,31,4],[32,1,32,4],[0,0,0,6],[1,0,1,6],[3,1,3,4],[4,0,4,5],[14,1,14,4],[16,0,16,5]]}
["交付申請時に提出する証明書の記載例（事務組合が直接受け取る場合）"]
["（令和○年度交付分に係る受入及び支出）"]
[]
[null,"受入証明書"]
["令和〇年〇月○日に交付を受けた報奨金　2,000,000円の支出の振り替えについては、下記のとおりです。\n\n"]
[]
[null,"収　入　事　項","受入金額","備考"]
[null,"款　その他収入",{"$f":"C10","v":2000000},"R○.○.○受け入れ"]
[null,"　項　報　奨　金",{"$f":"C10","v":2000000}]
[null,"目　報　奨　金",2000000]
[]
[null,"計",{"$f":"C8","v":2000000}]
[]
[]
[null,"支出証明書(振替）"]
[]
["報奨金　2,000,000円の支出（振替）については、下記のとおりです。\n\nなお、振替期日は各備考欄に記載しております。"]
[null,"支　出　事　項","支出総額","報奨金支出額","備考"]
[null,"１．人　件　費",{"$f":"SUM(C20:C21)","v":4800000},{"$f":"SUM(D20:D21)","v":1125000},"R○.○.○振り替え"]
[null,"○○　○○",2400000,665000]
[null,"△△　△△",2400000,460000]
[]
[null,"２．賃貸借料",{"$f":"SUM(C24:C24)","v":1000000},{"$f":"SUM(D24:D24)","v":200000},"R○.○.○振り替え"]
[null,"　事務所借り上げ料",1000000,200000]
[null,"３．旅　　費",{"$f":"SUM(C26:C26)","v":30000},{"$f":"SUM(D26:D26)","v":30000},"R○.○.○振り替え"]
[null,"　労働保険料徴収等",30000,30000]
[null,"４．その他の経費",null,{"$f":"SUM(D28:D28)","v":645000},"R○.○.○振り替え"]
[null,"　自動車積立金等",null,645000]
[]
[null,"計",null,{"$f":"D19+D23+D25+D27","v":2000000}]
[]
[null,"当該受入証明書、支出証明書については、正当なものであることを証します。"]
[null,"令和○年○月○日　証明者　労働保険事務組合　代表　〇〇　○○"]

{"sheet":"別紙1-2例","index":16,"n_rows":35,"n_cols":5,"rows_kept":35,"cut":false,"hidden":false,"merged":[[34,1,34,4],[0,0,0,6],[1,0,1,6],[2,4,2,5],[3,1,3,4],[4,0,4,5],[5,1,5,2],[5,3,5,4],[14,1,14,4],[15,0,15,5],[19,4,20,4],[31,1,31,4],[32,1,32,4]]}
[" "]
["（令和○年度交付分に係る受入及び支出）"]
[]
[null,"受入証明書（繰入）"]
["令和○年○月○日に交付を受けた報奨金200万円の受入及び繰入については、下記のとおりです。\nなお、繰入期日は令和○年○月○日です。"]
[null,"受　　　入　",null,"繰　　　入　"]
[null,"収　入　事　項\n（事務組合）","受入金額","収　入　事　項\n（○○本体会計）","繰入金額"]
[null,"款　その他収入",{"$f":"C10","v":2000000},"款　その他収入",{"$f":"C10","v":2000000}]
[null,"　項　報　奨　金",{"$f":"C10","v":2000000},"　項　雑　収　入",{"$f":"E10","v":2000000}]
[null,"目　報　奨　金",2000000,"（目　報　奨　金）",2000000]
[null,"うち母体会計繰入分",-2000000,"事務組合からの繰入"]
[]
[null,"計",{"$f":"C8","v":2000000},null,{"$f":"E8","v":2000000}]
[]
[null,"支出証明書（振替）"]
["令和○年○月○日に繰入れ済みの報奨金　2,000,000円の支出の振り替えについては、下記のとおりです。\n\nなお、振替期日は令和○年○月○日に一括して振り替えました。"]
[]
[null,"支　出　事　項","支出総額\n（一般会計より支出）","報奨金支出額","備考"]
[null,"１．人　件　費",{"$f":"SUM(C20:C21)","v":4800000},{"$f":"SUM(D20:D21)","v":1125000},"R○.○.○振り替え"]
[null,"○○　○○",2400000,665000]
[null,"△△　△△",2400000,460000]
[]
[null,"２．賃貸借料",{"$f":"SUM(C24:C24)","v":1000000},{"$f":"SUM(D24:D24)","v":200000},"R○.○.○振り替え"]
[null,"　事務所借り上げ料",1000000,200000]
[null,"３．旅　　費",{"$f":"SUM(C26:C26)","v":30000},{"$f":"SUM(D26:D26)","v":30000},"R○.○.○振り替え"]
[null,"　労働保険料徴収等",30000,30000]
[null,"４．その他の経費",null,{"$f":"SUM(D28:D28)","v":645000},"R○.○.○振り替え"]
[null,"　自動車積立金等",null,645000]
[]
[null,"計",null,{"$f":"D19+D23+D25+D27","v":2000000}]
[]
[null,"当該受入証明書（繰入）・支出証明書（振替）については、正当なものであることを証します。"]
[null,"令和○年○月○日　　証明者　　労働保険事務組合　　代表　○○　○○"]
[]
[null,"令和○年○月○日　　証明者　　××経営労務研究会　代表　●●　●●"]

{"sheet":"別紙1-3例","index":17,"n_rows":32,"n_cols":4,"rows_kept":32,"cut":false,"hidden":false,"merged":[[0,1,0,3],[30,1,30,3],[31,1,31,3]]}
[null,"「令和○年度交付分に係る支出予定内容」の記載例"]
[]
[null,"支　出　事　項","令和5年度\n報奨金支出予定額","備　　考"]
[null,"１．人 件 費",{"$f":"SUM(C5:C6)","v":1125000}]
[null,"　　○○　○○　",665000]
[null,"　　○○　○○",460000]
[null,"２．賃貸借料",{"$f":"SUM(C8:C8)","v":200000}]
[null,"　事務所借り上げ料",200000]
[null,"３．旅　　費",{"$f":"SUM(C10:C11)","v":30000}]
[null,"　労働保険料徴収",10000]
[null,"　行政機関への報告関係",20000]
[null,"４．その他の経費",{"$f":"C13+C15+C17+C19+C21+C23+C25","v":645000}]
[null,"　①各種積立金",{"$f":"SUM(C14:C14)","v":200000}]
[null,"　　　自動車購入積立金",200000]
[null,"　②繰　越　金",{"$f":"SUM(C16:C16)","v":0}]
[]
[null,"　③ＰＣ購入等",{"$f":"SUM(C18:C18)","v":0}]
[]
[null,"　④システム開発等",{"$f":"SUM(C20:C20)","v":200000}]
[null,"　　ソフトウェア改修",200000]
[null,"　⑤各種会費負担金",{"$f":"SUM(C22:C22)","v":0}]
[]
[null,"　⑥光 熱 水 料",{"$f":"SUM(C24:C24)","v":200000}]
[null,"　　事務室光熱水料",200000]
[null,"　⑦消耗品購入費用",{"$f":"SUM(C26:C26)","v":45000}]
[null,"　　ＯＡ（コピー機）トナー等",45000]
[null,"  ⑧各種委託費",{"$f":"SUM(C28:C28)","v":0}]
[]
[]
[null,"計",{"$f":"C4+C7+C9+C12","v":2000000}]
[null,"上記支出予定内容については、以上のものであることを証します。"]
[null,"　　　　　　　　　　　令和○年○月○日　証明者　労働保険事務組合　代表　○○　○○"]